{"text_format":"1","workbook":"xlsx","n_sheets":3,"sheets":["RESULTATS","DATA_1_TEAMS","DATA_1_MATCHS"],"not_rendered":{"charts":0,"images":2,"macros":1,"external_links":0,"defined_names":9,"comments":1,"pivot_tables":0},"unopened":[],"bounds":{"document_bytes":16777216,"sheet_cells":100000,"rows_first":2000,"rows_last":500,"rows_between":2000,"halvings":0,"cell_chars":16384,"cell_head_chars":4096},"cells_cut":0,"cells_raw":0,"read":"whole","date_system":"1900"}

{"sheet":"RESULTATS","index":0,"n_rows":138,"n_cols":45,"rows_kept":138,"cut":false,"hidden":false,"merged":[[6,30,6,37],[6,38,6,43],[6,18,6,27],[3,9,3,12],[2,9,2,11],[5,18,5,27],[5,30,5,44],[5,1,5,13]]}
[]
[null,"RESULTATS REELS"]
[]
[null,"A SAISIR SUR CETTE PAGE"]
[]
[null,"SAISIE DES RESULTATS",null,null,null,null,null,null,null,null,null,null,null,null,null,null,null,null,"GROUPES",null,null,null,null,null,null,null,null,null,null,null,"PHASES FINALES"]
[null,"Date","Heure","Match","Groupe",1,"N",2,null,"Buts",null,null,"Buts",null,null,null,null,null,"   suivi des scores||||||||||||||||||||||||||||||||||||||||||||||||||||||||||||||||||||",null,null,null,null,null,null,null,null,null,null,null,"Dernière saisie des scores >>>",null,null,null,null,null,null,null,"jeudi 22 février 2018 à 12:34:41"]
[null,{"$f":"VLOOKUP($D8,TABLEAU_MATCHS[#All],2,FALSE)","v":"2018-06-14"},{"$f":"VLOOKUP($D8,TABLEAU_MATCHS[#All],3,FALSE)","v":"18:00:00"},1,{"$f":"\"Groupe \"&VLOOKUP($I8,TABLEAU_TEAMS[[#All],[TEAM]:[GROUP_INITIAL_RANK]],2,FALSE)","v":"Groupe A"},null,null,null,{"$f":"VLOOKUP($D8,TABLEAU_MATCHS[#All],4,FALSE)","v":"Russie"},5,null,{"$f":"VLOOKUP($D8,TABLEAU_MATCHS[#All],5,FALSE)","v":"Arabie Saoudite"},0,null,null,null,null,null,"Rg","Groupe A","MJ","G","N","P","BP","BC","+/-","Pts",null,null,"Date","Finale",null,null,"Buts",null,"Pen",null,null,null,"Buts",null,"Pen"]
[null,{"$f":"VLOOKUP($D9,TABLEAU_MATCHS[#All],2,FALSE)","v":"2018-06-15"},{"$f":"VLOOKUP($D9,TABLEAU_MATCHS[#All],3,FALSE)","v":"17:00:00"},2,{"$f":"\"Groupe \"&VLOOKUP($I9,TABLEAU_TEAMS[[#All],[TEAM]:[GROUP_INITIAL_RANK]],2,FALSE)","v":"Groupe A"},null,null,null,{"$f":"VLOOKUP($D9,TABLEAU_MATCHS[#All],4,FALSE)","v":"Egypte"},0,null,{"$f":"VLOOKUP($D9,TABLEAU_MATCHS[#All],5,FALSE)","v":"Uruguay"},1,null,null,null,{"$f":"INDEX($Q60:$Q63,MATCH(SMALL(COUNTIF($Q60:$Q63,\">=\"&$Q60:$Q63),ROW(INDIRECT(\"1:\"&ROWS($Q60:$Q63)))),COUNTIF($Q60:$Q63,\">=\"&$Q60:$Q63),0))","v":"09550Uruguay"},{"$f":"INDEX($R60:$R63,MATCH(SMALL(COUNTIF($Q60:$Q63,\">=\"&$Q60:$Q63),ROW(INDIRECT(\"1:\"&ROWS($Q60:$Q63)))),COUNTIF($Q60:$Q63,\">=\"&$Q60:$Q63),0))","v":9550},{"$f":"INDEX($S60:$S63,MATCH(SMALL(COUNTIF($Q60:$Q63,\">=\"&$Q60:$Q63),ROW(INDIRECT(\"1:\"&ROWS($Q60:$Q63)))),COUNTIF($Q60:$Q63,\">=\"&$Q60:$Q63),0))","v":1},{"$f":"INDEX($T60:$T63,MATCH(SMALL(COUNTIF($Q60:$Q63,\">=\"&$Q60:$Q63),ROW(INDIRECT(\"1:\"&ROWS($Q60:$Q63)))),COUNTIF($Q60:$Q63,\">=\"&$Q60:$Q63),0))","v":"Uruguay"},{"$f":"SUMPRODUCT((Teams1=T9)*(Teams1_Score<>\"\"))+SUMPRODUCT((Teams2=T9)*(Teams2_Score<>\"\"))","v":3},{"$f":"SUMPRODUCT((Teams1=T9)*(Teams1_Score>Teams2_Score))+SUMPRODUCT((Teams2=T9)*(Teams2_Score>Teams1_Score))","v":3},{"$f":"SUMPRODUCT((Teams1=T9)*(Teams1_Score=Teams2_Score)*(Teams1_Score<>\"\"))+SUMPRODUCT((Teams2=T9)*(Teams2_Score=Teams1_Score)*(Teams2_Score<>\"\"))","v":0},{"$f":"SUMPRODUCT((Teams1=T9)*(Teams1_Score<Teams2_Score))+SUMPRODUCT((Teams2=T9)*(Teams2_Score<Teams1_Score))","v":0},{"$f":"SUMPRODUCT((Teams1=T9)*(Teams1_Score))+SUMPRODUCT((Teams2=T9)*(Teams2_Score))","v":5},{"$f":"SUMPRODUCT((Teams1=T9)*(Teams2_Score))+SUMPRODUCT((Teams2=T9)*(Teams1_Score))","v":0},{"$f":"Y9-Z9","v":5},{"$f":"3*V9+W9","v":9}]
[null,{"$f":"VLOOKUP($D10,TABLEAU_MATCHS[#All],2,FALSE)","v":"2018-06-15"},{"$f":"VLOOKUP($D10,TABLEAU_MATCHS[#All],3,FALSE)","v":"18:00:00"},3,{"$f":"\"Groupe \"&VLOOKUP($I10,TABLEAU_TEAMS[[#All],[TEAM]:[GROUP_INITIAL_RANK]],2,FALSE)","v":"Groupe B"},null,null,null,{"$f":"VLOOKUP($D10,TABLEAU_MATCHS[#All],4,FALSE)","v":"Maroc"},0,null,{"$f":"VLOOKUP($D10,TABLEAU_MATCHS[#All],5,FALSE)","v":"RI Iran"},1,null,null,null,"06480Russie",6480,2,"Russie",{"$f":"SUMPRODUCT((Teams1=T10)*(Teams1_Score<>\"\"))+SUMPRODUCT((Teams2=T10)*(Teams2_Score<>\"\"))","v":3},{"$f":"SUMPRODUCT((Teams1=T10)*(Teams1_Score>Teams2_Score))+SUMPRODUCT((Teams2=T10)*(Teams2_Score>Teams1_Score))","v":2},{"$f":"SUMPRODUCT((Teams1=T10)*(Teams1_Score=Teams2_Score)*(Teams1_Score<>\"\"))+SUMPRODUCT((Teams2=T10)*(Teams2_Score=Teams1_Score)*(Teams2_Score<>\"\"))","v":0},{"$f":"SUMPRODUCT((Teams1=T10)*(Teams1_Score<Teams2_Score))+SUMPRODUCT((Teams2=T10)*(Teams2_Score<Teams1_Score))","v":1},{"$f":"SUMPRODUCT((Teams1=T10)*(Teams1_Score))+SUMPRODUCT((Teams2=T10)*(Teams2_Score))","v":8},{"$f":"SUMPRODUCT((Teams1=T10)*(Teams2_Score))+SUMPRODUCT((Teams2=T10)*(Teams1_Score))","v":4},{"$f":"Y10-Z10","v":4},{"$f":"3*V10+W10","v":6},null,null,"2018-07-15",null,{"$f":"+IF(AI18<>\"\",IF(AH18>AN18,AG18,AM18),\"Vainqueur 1\")","v":"France"},{"$f":"AI10*10+AK10","v":40},4,null,null,null,{"$f":"+IF(AI19<>\"\",IF(AH19>AN19,AG19,AM19),\"Vainqueur 2\")","v":"Croatie"},{"$f":"AO10*10+AQ10","v":20},2,null,null,null,{"$f":"IF(AI10<>\"\",IF(AH10>AN10,AG10,AM10),\"\")","v":"France"}]
[null,{"$f":"VLOOKUP($D11,TABLEAU_MATCHS[#All],2,FALSE)","v":"2018-06-15"},{"$f":"VLOOKUP($D11,TABLEAU_MATCHS[#All],3,FALSE)","v":"21:00:00"},4,{"$f":"\"Groupe \"&VLOOKUP($I11,TABLEAU_TEAMS[[#All],[TEAM]:[GROUP_INITIAL_RANK]],2,FALSE)","v":"Groupe B"},null,null,null,{"$f":"VLOOKUP($D11,TABLEAU_MATCHS[#All],4,FALSE)","v":"Portugal"},3,null,{"$f":"VLOOKUP($D11,TABLEAU_MATCHS[#All],5,FALSE)","v":"Espagne"},3,null,null,null,"02520Arabie Saoudite",2520,3,"Arabie Saoudite",{"$f":"SUMPRODUCT((Teams1=T11)*(Teams1_Score<>\"\"))+SUMPRODUCT((Teams2=T11)*(Teams2_Score<>\"\"))","v":3},{"$f":"SUMPRODUCT((Teams1=T11)*(Teams1_Score>Teams2_Score))+SUMPRODUCT((Teams2=T11)*(Teams2_Score>Teams1_Score))","v":1},{"$f":"SUMPRODUCT((Teams1=T11)*(Teams1_Score=Teams2_Score)*(Teams1_Score<>\"\"))+SUMPRODUCT((Teams2=T11)*(Teams2_Score=Teams1_Score)*(Teams2_Score<>\"\"))","v":0},{"$f":"SUMPRODUCT((Teams1=T11)*(Teams1_Score<Teams2_Score))+SUMPRODUCT((Teams2=T11)*(Teams2_Score<Teams1_Score))","v":2},{"$f":"SUMPRODUCT((Teams1=T11)*(Teams1_Score))+SUMPRODUCT((Teams2=T11)*(Teams2_Score))","v":2},{"$f":"SUMPRODUCT((Teams1=T11)*(Teams2_Score))+SUMPRODUCT((Teams2=T11)*(Teams1_Score))","v":7},-5,3]
[null,{"$f":"VLOOKUP($D12,TABLEAU_MATCHS[#All],2,FALSE)","v":"2018-06-16"},{"$f":"VLOOKUP($D12,TABLEAU_MATCHS[#All],3,FALSE)","v":"13:00:00"},5,{"$f":"\"Groupe \"&VLOOKUP($I12,TABLEAU_TEAMS[[#All],[TEAM]:[GROUP_INITIAL_RANK]],2,FALSE)","v":"Groupe C"},null,null,null,{"$f":"VLOOKUP($D12,TABLEAU_MATCHS[#All],4,FALSE)","v":"France"},2,null,{"$f":"VLOOKUP($D12,TABLEAU_MATCHS[#All],5,FALSE)","v":"Australie"},1,null,null,null,"-00380Egypte",-380,4,"Egypte",{"$f":"SUMPRODUCT((Teams1=T12)*(Teams1_Score<>\"\"))+SUMPRODUCT((Teams2=T12)*(Teams2_Score<>\"\"))","v":3},{"$f":"SUMPRODUCT((Teams1=T12)*(Teams1_Score>Teams2_Score))+SUMPRODUCT((Teams2=T12)*(Teams2_Score>Teams1_Score))","v":0},{"$f":"SUMPRODUCT((Teams1=T12)*(Teams1_Score=Teams2_Score)*(Teams1_Score<>\"\"))+SUMPRODUCT((Teams2=T12)*(Teams2_Score=Teams1_Score)*(Teams2_Score<>\"\"))","v":0},{"$f":"SUMPRODUCT((Teams1=T12)*(Teams1_Score<Teams2_Score))+SUMPRODUCT((Teams2=T12)*(Teams2_Score<Teams1_Score))","v":3},{"$f":"SUMPRODUCT((Teams1=T12)*(Teams1_Score))+SUMPRODUCT((Teams2=T12)*(Teams2_Score))","v":2},{"$f":"SUMPRODUCT((Teams1=T12)*(Teams2_Score))+SUMPRODUCT((Teams2=T12)*(Teams1_Score))","v":6},-4,0,null,null,"Date","Petite Finale",null,null,"Buts",null,"Pen",null,null,null,"Buts",null,"Pen"]
[null,{"$f":"VLOOKUP($D13,TABLEAU_MATCHS[#All],2,FALSE)","v":"2018-06-16"},{"$f":"VLOOKUP($D13,TABLEAU_MATCHS[#All],3,FALSE)","v":"19:00:00"},6,{"$f":"\"Groupe \"&VLOOKUP($I13,TABLEAU_TEAMS[[#All],[TEAM]:[GROUP_INITIAL_RANK]],2,FALSE)","v":"Groupe C"},null,null,null,{"$f":"VLOOKUP($D13,TABLEAU_MATCHS[#All],4,FALSE)","v":"Pérou"},0,null,{"$f":"VLOOKUP($D13,TABLEAU_MATCHS[#All],5,FALSE)","v":"Danemark"},1]
[null,{"$f":"VLOOKUP($D14,TABLEAU_MATCHS[#All],2,FALSE)","v":"2018-06-16"},{"$f":"VLOOKUP($D14,TABLEAU_MATCHS[#All],3,FALSE)","v":"16:00:00"},7,{"$f":"\"Groupe \"&VLOOKUP($I14,TABLEAU_TEAMS[[#All],[TEAM]:[GROUP_INITIAL_RANK]],2,FALSE)","v":"Groupe D"},null,null,null,{"$f":"VLOOKUP($D14,TABLEAU_MATCHS[#All],4,FALSE)","v":"Argentine"},1,null,{"$f":"VLOOKUP($D14,TABLEAU_MATCHS[#All],5,FALSE)","v":"Islande"},1,null,null,null,null,null,"Rg","Groupe B","MJ","G","N","P","BP","BC","+/-","Pts",null,null,"2018-07-14",null,{"$f":"+IF(AI18<>\"\",IF(AH18>AN18,AM18,AG18),\"Perdant 1\")","v":"Belgique"},{"$f":"AI14*10+AK14","v":20},2,null,null,null,{"$f":"+IF(AI19<>\"\",IF(AH19>AN19,AM19,AG19),\"Perdant 2\")","v":"Angleterre"},{"$f":"AO14*10+AQ14","v":0},0]
[null,{"$f":"VLOOKUP($D15,TABLEAU_MATCHS[#All],2,FALSE)","v":"2018-06-16"},{"$f":"VLOOKUP($D15,TABLEAU_MATCHS[#All],3,FALSE)","v":"21:00:00"},8,{"$f":"\"Groupe \"&VLOOKUP($I15,TABLEAU_TEAMS[[#All],[TEAM]:[GROUP_INITIAL_RANK]],2,FALSE)","v":"Groupe D"},null,null,null,{"$f":"VLOOKUP($D15,TABLEAU_MATCHS[#All],4,FALSE)","v":"Croatie"},2,null,{"$f":"VLOOKUP($D15,TABLEAU_MATCHS[#All],5,FALSE)","v":"Nigeria"},0,null,null,null,{"$f":"INDEX($Q66:$Q69,MATCH(SMALL(COUNTIF($Q66:$Q69,\">=\"&$Q66:$Q69),ROW(INDIRECT(\"1:\"&ROWS($Q66:$Q69)))),COUNTIF($Q66:$Q69,\">=\"&$Q66:$Q69),0))","v":"05160Espagne"},{"$f":"INDEX($R66:$R69,MATCH(SMALL(COUNTIF($Q66:$Q69,\">=\"&$Q66:$Q69),ROW(INDIRECT(\"1:\"&ROWS($Q66:$Q69)))),COUNTIF($Q66:$Q69,\">=\"&$Q66:$Q69),0))","v":5160},{"$f":"INDEX($S66:$S69,MATCH(SMALL(COUNTIF($Q66:$Q69,\">=\"&$Q66:$Q69),ROW(INDIRECT(\"1:\"&ROWS($Q66:$Q69)))),COUNTIF($Q66:$Q69,\">=\"&$Q66:$Q69),0))","v":1},{"$f":"INDEX($T66:$T69,MATCH(SMALL(COUNTIF($Q66:$Q69,\">=\"&$Q66:$Q69),ROW(INDIRECT(\"1:\"&ROWS($Q66:$Q69)))),COUNTIF($Q66:$Q69,\">=\"&$Q66:$Q69),0))","v":"Espagne"},{"$f":"SUMPRODUCT((Teams1=T15)*(Teams1_Score<>\"\"))+SUMPRODUCT((Teams2=T15)*(Teams2_Score<>\"\"))","v":3},{"$f":"SUMPRODUCT((Teams1=T15)*(Teams1_Score>Teams2_Score))+SUMPRODUCT((Teams2=T15)*(Teams2_Score>Teams1_Score))","v":1},{"$f":"SUMPRODUCT((Teams1=T15)*(Teams1_Score=Teams2_Score)*(Teams1_Score<>\"\"))+SUMPRODUCT((Teams2=T15)*(Teams2_Score=Teams1_Score)*(Teams2_Score<>\"\"))","v":2},{"$f":"SUMPRODUCT((Teams1=T15)*(Teams1_Score<Teams2_Score))+SUMPRODUCT((Teams2=T15)*(Teams2_Score<Teams1_Score))","v":0},{"$f":"SUMPRODUCT((Teams1=T15)*(Teams1_Score))+SUMPRODUCT((Teams2=T15)*(Teams2_Score))","v":6},{"$f":"SUMPRODUCT((Teams1=T15)*(Teams2_Score))+SUMPRODUCT((Teams2=T15)*(Teams1_Score))","v":5},{"$f":"Y15-Z15","v":1},{"$f":"3*V15+W15","v":5}]
[null,{"$f":"VLOOKUP($D16,TABLEAU_MATCHS[#All],2,FALSE)","v":"2018-06-17"},{"$f":"VLOOKUP($D16,TABLEAU_MATCHS[#All],3,FALSE)","v":"16:00:00"},9,{"$f":"\"Groupe \"&VLOOKUP($I16,TABLEAU_TEAMS[[#All],[TEAM]:[GROUP_INITIAL_RANK]],2,FALSE)","v":"Groupe E"},null,null,null,{"$f":"VLOOKUP($D16,TABLEAU_MATCHS[#All],4,FALSE)","v":"Costa Rica"},0,null,{"$f":"VLOOKUP($D16,TABLEAU_MATCHS[#All],5,FALSE)","v":"Serbie"},1,null,null,null,"05150Portugal",5150,2,"Portugal",{"$f":"SUMPRODUCT((Teams1=T16)*(Teams1_Score<>\"\"))+SUMPRODUCT((Teams2=T16)*(Teams2_Score<>\"\"))","v":3},{"$f":"SUMPRODUCT((Teams1=T16)*(Teams1_Score>Teams2_Score))+SUMPRODUCT((Teams2=T16)*(Teams2_Score>Teams1_Score))","v":1},{"$f":"SUMPRODUCT((Teams1=T16)*(Teams1_Score=Teams2_Score)*(Teams1_Score<>\"\"))+SUMPRODUCT((Teams2=T16)*(Teams2_Score=Teams1_Score)*(Teams2_Score<>\"\"))","v":2},{"$f":"SUMPRODUCT((Teams1=T16)*(Teams1_Score<Teams2_Score))+SUMPRODUCT((Teams2=T16)*(Teams2_Score<Teams1_Score))","v":0},{"$f":"SUMPRODUCT((Teams1=T16)*(Teams1_Score))+SUMPRODUCT((Teams2=T16)*(Teams2_Score))","v":5},{"$f":"SUMPRODUCT((Teams1=T16)*(Teams2_Score))+SUMPRODUCT((Teams2=T16)*(Teams1_Score))","v":4},1,5,null,null,"Date","Demi Finale",null,null,"Buts",null,"Pen",null,null,null,"Buts",null,"Pen"]
[null,{"$f":"VLOOKUP($D17,TABLEAU_MATCHS[#All],2,FALSE)","v":"2018-06-17"},{"$f":"VLOOKUP($D17,TABLEAU_MATCHS[#All],3,FALSE)","v":"21:00:00"},10,{"$f":"\"Groupe \"&VLOOKUP($I17,TABLEAU_TEAMS[[#All],[TEAM]:[GROUP_INITIAL_RANK]],2,FALSE)","v":"Groupe E"},null,null,null,{"$f":"VLOOKUP($D17,TABLEAU_MATCHS[#All],4,FALSE)","v":"Brésil"},1,null,{"$f":"VLOOKUP($D17,TABLEAU_MATCHS[#All],5,FALSE)","v":"Suisse"},1,null,null,null,"04020RI Iran",4020,3,"RI Iran",{"$f":"SUMPRODUCT((Teams1=T17)*(Teams1_Score<>\"\"))+SUMPRODUCT((Teams2=T17)*(Teams2_Score<>\"\"))","v":3},{"$f":"SUMPRODUCT((Teams1=T17)*(Teams1_Score>Teams2_Score))+SUMPRODUCT((Teams2=T17)*(Teams2_Score>Teams1_Score))","v":1},{"$f":"SUMPRODUCT((Teams1=T17)*(Teams1_Score=Teams2_Score)*(Teams1_Score<>\"\"))+SUMPRODUCT((Teams2=T17)*(Teams2_Score=Teams1_Score)*(Teams2_Score<>\"\"))","v":1},{"$f":"SUMPRODUCT((Teams1=T17)*(Teams1_Score<Teams2_Score))+SUMPRODUCT((Teams2=T17)*(Teams2_Score<Teams1_Score))","v":1},{"$f":"SUMPRODUCT((Teams1=T17)*(Teams1_Score))+SUMPRODUCT((Teams2=T17)*(Teams2_Score))","v":2},{"$f":"SUMPRODUCT((Teams1=T17)*(Teams2_Score))+SUMPRODUCT((Teams2=T17)*(Teams1_Score))","v":2},0,4]
[null,{"$f":"VLOOKUP($D18,TABLEAU_MATCHS[#All],2,FALSE)","v":"2018-06-17"},{"$f":"VLOOKUP($D18,TABLEAU_MATCHS[#All],3,FALSE)","v":"18:00:00"},11,{"$f":"\"Groupe \"&VLOOKUP($I18,TABLEAU_TEAMS[[#All],[TEAM]:[GROUP_INITIAL_RANK]],2,FALSE)","v":"Groupe F"},null,null,null,{"$f":"VLOOKUP($D18,TABLEAU_MATCHS[#All],4,FALSE)","v":"Allemagne"},0,null,{"$f":"VLOOKUP($D18,TABLEAU_MATCHS[#All],5,FALSE)","v":"Mexique"},1,null,null,null,"00820Maroc",820,4,"Maroc",{"$f":"SUMPRODUCT((Teams1=T18)*(Teams1_Score<>\"\"))+SUMPRODUCT((Teams2=T18)*(Teams2_Score<>\"\"))","v":3},{"$f":"SUMPRODUCT((Teams1=T18)*(Teams1_Score>Teams2_Score))+SUMPRODUCT((Teams2=T18)*(Teams2_Score>Teams1_Score))","v":0},{"$f":"SUMPRODUCT((Teams1=T18)*(Teams1_Score=Teams2_Score)*(Teams1_Score<>\"\"))+SUMPRODUCT((Teams2=T18)*(Teams2_Score=Teams1_Score)*(Teams2_Score<>\"\"))","v":1},{"$f":"SUMPRODUCT((Teams1=T18)*(Teams1_Score<Teams2_Score))+SUMPRODUCT((Teams2=T18)*(Teams2_Score<Teams1_Score))","v":2},{"$f":"SUMPRODUCT((Teams1=T18)*(Teams1_Score))+SUMPRODUCT((Teams2=T18)*(Teams2_Score))","v":2},{"$f":"SUMPRODUCT((Teams1=T18)*(Teams2_Score))+SUMPRODUCT((Teams2=T18)*(Teams1_Score))","v":4},-2,1,null,null,"2018-07-10",1,{"$f":"+IF(AI23<>\"\",IF(AH23>AN23,AG23,AM23),\"Vainqueur A\")","v":"France"},{"$f":"AI18*10+AK18","v":10},1,null,0,null,{"$f":"+IF(AI25<>\"\",IF(AH25>AN25,AG25,AM25),\"Vainqueur C\")","v":"Belgique"},{"$f":"AO18*10+AQ18","v":0}]
[null,{"$f":"VLOOKUP($D19,TABLEAU_MATCHS[#All],2,FALSE)","v":"2018-06-18"},{"$f":"VLOOKUP($D19,TABLEAU_MATCHS[#All],3,FALSE)","v":"15:00:00"},12,{"$f":"\"Groupe \"&VLOOKUP($I19,TABLEAU_TEAMS[[#All],[TEAM]:[GROUP_INITIAL_RANK]],2,FALSE)","v":"Groupe F"},null,null,null,{"$f":"VLOOKUP($D19,TABLEAU_MATCHS[#All],4,FALSE)","v":"Suède"},1,null,{"$f":"VLOOKUP($D19,TABLEAU_MATCHS[#All],5,FALSE)","v":"République de Corée"},0,null,null,null,null,null,null,null,null,null,null,null,null,null,null,null,null,null,"2018-07-11",2,{"$f":"+IF(AI24<>\"\",IF(AH24>AN24,AG24,AM24),\"Vainqueur B\")","v":"Croatie"},21,2,null,1,null,{"$f":"+IF(AI26<>\"\",IF(AH26>AN26,AG26,AM26),\"Vainqueur D\")","v":"Angleterre"},0]
[null,{"$f":"VLOOKUP($D20,TABLEAU_MATCHS[#All],2,FALSE)","v":"2018-06-18"},{"$f":"VLOOKUP($D20,TABLEAU_MATCHS[#All],3,FALSE)","v":"18:00:00"},13,{"$f":"\"Groupe \"&VLOOKUP($I20,TABLEAU_TEAMS[[#All],[TEAM]:[GROUP_INITIAL_RANK]],2,FALSE)","v":"Groupe G"},null,null,null,{"$f":"VLOOKUP($D20,TABLEAU_MATCHS[#All],4,FALSE)","v":"Belgique"},3,null,{"$f":"VLOOKUP($D20,TABLEAU_MATCHS[#All],5,FALSE)","v":"Panama"},0,null,null,null,null,null,"Rg","Groupe C","MJ","G","N","P","BP","BC","+/-","Pts"]
[null,{"$f":"VLOOKUP($D21,TABLEAU_MATCHS[#All],2,FALSE)","v":"2018-06-18"},{"$f":"VLOOKUP($D21,TABLEAU_MATCHS[#All],3,FALSE)","v":"21:00:00"},14,{"$f":"\"Groupe \"&VLOOKUP($I21,TABLEAU_TEAMS[[#All],[TEAM]:[GROUP_INITIAL_RANK]],2,FALSE)","v":"Groupe G"},null,null,null,{"$f":"VLOOKUP($D21,TABLEAU_MATCHS[#All],4,FALSE)","v":"Tunisie"},1,null,{"$f":"VLOOKUP($D21,TABLEAU_MATCHS[#All],5,FALSE)","v":"Angleterre"},2,null,null,null,{"$f":"INDEX($Q72:$Q75,MATCH(SMALL(COUNTIF($Q72:$Q75,\">=\"&$Q72:$Q75),ROW(INDIRECT(\"1:\"&ROWS($Q72:$Q75)))),COUNTIF($Q72:$Q75,\">=\"&$Q72:$Q75),0))","v":"07230France"},{"$f":"INDEX($R72:$R75,MATCH(SMALL(COUNTIF($Q72:$Q75,\">=\"&$Q72:$Q75),ROW(INDIRECT(\"1:\"&ROWS($Q72:$Q75)))),COUNTIF($Q72:$Q75,\">=\"&$Q72:$Q75),0))","v":7230},{"$f":"INDEX($S72:$S75,MATCH(SMALL(COUNTIF($Q72:$Q75,\">=\"&$Q72:$Q75),ROW(INDIRECT(\"1:\"&ROWS($Q72:$Q75)))),COUNTIF($Q72:$Q75,\">=\"&$Q72:$Q75),0))","v":1},{"$f":"INDEX($T72:$T75,MATCH(SMALL(COUNTIF($Q72:$Q75,\">=\"&$Q72:$Q75),ROW(INDIRECT(\"1:\"&ROWS($Q72:$Q75)))),COUNTIF($Q72:$Q75,\">=\"&$Q72:$Q75),0))","v":"France"},{"$f":"SUMPRODUCT((Teams1=T21)*(Teams1_Score<>\"\"))+SUMPRODUCT((Teams2=T21)*(Teams2_Score<>\"\"))","v":3},{"$f":"SUMPRODUCT((Teams1=T21)*(Teams1_Score>Teams2_Score))+SUMPRODUCT((Teams2=T21)*(Teams2_Score>Teams1_Score))","v":2},{"$f":"SUMPRODUCT((Teams1=T21)*(Teams1_Score=Teams2_Score)*(Teams1_Score<>\"\"))+SUMPRODUCT((Teams2=T21)*(Teams2_Score=Teams1_Score)*(Teams2_Score<>\"\"))","v":1},{"$f":"SUMPRODUCT((Teams1=T21)*(Teams1_Score<Teams2_Score))+SUMPRODUCT((Teams2=T21)*(Teams2_Score<Teams1_Score))","v":0},{"$f":"SUMPRODUCT((Teams1=T21)*(Teams1_Score))+SUMPRODUCT((Teams2=T21)*(Teams2_Score))","v":3},{"$f":"SUMPRODUCT((Teams1=T21)*(Teams2_Score))+SUMPRODUCT((Teams2=T21)*(Teams1_Score))","v":1},{"$f":"Y21-Z21","v":2},{"$f":"3*V21+W21","v":7},null,null,"Date","Quart de Finale",null,null,"Buts",null,"Pen",null,null,null,"Buts",null,"Pen"]
[null,{"$f":"VLOOKUP($D22,TABLEAU_MATCHS[#All],2,FALSE)","v":"2018-06-19"},{"$f":"VLOOKUP($D22,TABLEAU_MATCHS[#All],3,FALSE)","v":"15:00:00"},15,{"$f":"\"Groupe \"&VLOOKUP($I22,TABLEAU_TEAMS[[#All],[TEAM]:[GROUP_INITIAL_RANK]],2,FALSE)","v":"Groupe H"},null,null,null,{"$f":"VLOOKUP($D22,TABLEAU_MATCHS[#All],4,FALSE)","v":"Colombie"},1,null,{"$f":"VLOOKUP($D22,TABLEAU_MATCHS[#All],5,FALSE)","v":"Japon"},2,null,null,null,"05120Danemark",5120,2,"Danemark",{"$f":"SUMPRODUCT((Teams1=T22)*(Teams1_Score<>\"\"))+SUMPRODUCT((Teams2=T22)*(Teams2_Score<>\"\"))","v":3},{"$f":"SUMPRODUCT((Teams1=T22)*(Teams1_Score>Teams2_Score))+SUMPRODUCT((Teams2=T22)*(Teams2_Score>Teams1_Score))","v":1},{"$f":"SUMPRODUCT((Teams1=T22)*(Teams1_Score=Teams2_Score)*(Teams1_Score<>\"\"))+SUMPRODUCT((Teams2=T22)*(Teams2_Score=Teams1_Score)*(Teams2_Score<>\"\"))","v":2},{"$f":"SUMPRODUCT((Teams1=T22)*(Teams1_Score<Teams2_Score))+SUMPRODUCT((Teams2=T22)*(Teams2_Score<Teams1_Score))","v":0},{"$f":"SUMPRODUCT((Teams1=T22)*(Teams1_Score))+SUMPRODUCT((Teams2=T22)*(Teams2_Score))","v":2},{"$f":"SUMPRODUCT((Teams1=T22)*(Teams2_Score))+SUMPRODUCT((Teams2=T22)*(Teams1_Score))","v":1},1,5]
[null,{"$f":"VLOOKUP($D23,TABLEAU_MATCHS[#All],2,FALSE)","v":"2018-06-19"},{"$f":"VLOOKUP($D23,TABLEAU_MATCHS[#All],3,FALSE)","v":"18:00:00"},16,{"$f":"\"Groupe \"&VLOOKUP($I23,TABLEAU_TEAMS[[#All],[TEAM]:[GROUP_INITIAL_RANK]],2,FALSE)","v":"Groupe H"},null,null,null,{"$f":"VLOOKUP($D23,TABLEAU_MATCHS[#All],4,FALSE)","v":"Pologne"},1,null,{"$f":"VLOOKUP($D23,TABLEAU_MATCHS[#All],5,FALSE)","v":"Sénégal"},2,null,null,null,"03020Pérou",3020,3,"Pérou",{"$f":"SUMPRODUCT((Teams1=T23)*(Teams1_Score<>\"\"))+SUMPRODUCT((Teams2=T23)*(Teams2_Score<>\"\"))","v":3},{"$f":"SUMPRODUCT((Teams1=T23)*(Teams1_Score>Teams2_Score))+SUMPRODUCT((Teams2=T23)*(Teams2_Score>Teams1_Score))","v":1},{"$f":"SUMPRODUCT((Teams1=T23)*(Teams1_Score=Teams2_Score)*(Teams1_Score<>\"\"))+SUMPRODUCT((Teams2=T23)*(Teams2_Score=Teams1_Score)*(Teams2_Score<>\"\"))","v":0},{"$f":"SUMPRODUCT((Teams1=T23)*(Teams1_Score<Teams2_Score))+SUMPRODUCT((Teams2=T23)*(Teams2_Score<Teams1_Score))","v":2},{"$f":"SUMPRODUCT((Teams1=T23)*(Teams1_Score))+SUMPRODUCT((Teams2=T23)*(Teams2_Score))","v":2},{"$f":"SUMPRODUCT((Teams1=T23)*(Teams2_Score))+SUMPRODUCT((Teams2=T23)*(Teams1_Score))","v":2},0,3,null,null,"2018-07-06","A",{"$f":"+IF(AI30<>\"\",IF(AH30>AN30,AG30,AM30),\"Vainqueur 1\")","v":"Uruguay"},{"$f":"AI23*10+AK23","v":0},0,null,null,null,{"$f":"+IF(AI32<>\"\",IF(AH32>AN32,AG32,AM32),\"Vainqueur 3\")","v":"France"},{"$f":"AO23*10+AQ23","v":20},2]
[null,{"$f":"VLOOKUP($D24,TABLEAU_MATCHS[#All],2,FALSE)","v":"2018-06-19"},{"$f":"VLOOKUP($D24,TABLEAU_MATCHS[#All],3,FALSE)","v":"21:00:00"},17,{"$f":"\"Groupe \"&VLOOKUP($I24,TABLEAU_TEAMS[[#All],[TEAM]:[GROUP_INITIAL_RANK]],2,FALSE)","v":"Groupe A"},null,null,null,{"$f":"VLOOKUP($D24,TABLEAU_MATCHS[#All],4,FALSE)","v":"Russie"},3,null,{"$f":"VLOOKUP($D24,TABLEAU_MATCHS[#All],5,FALSE)","v":"Egypte"},1,null,null,null,"00720Australie",720,4,"Australie",{"$f":"SUMPRODUCT((Teams1=T24)*(Teams1_Score<>\"\"))+SUMPRODUCT((Teams2=T24)*(Teams2_Score<>\"\"))","v":3},{"$f":"SUMPRODUCT((Teams1=T24)*(Teams1_Score>Teams2_Score))+SUMPRODUCT((Teams2=T24)*(Teams2_Score>Teams1_Score))","v":0},{"$f":"SUMPRODUCT((Teams1=T24)*(Teams1_Score=Teams2_Score)*(Teams1_Score<>\"\"))+SUMPRODUCT((Teams2=T24)*(Teams2_Score=Teams1_Score)*(Teams2_Score<>\"\"))","v":1},{"$f":"SUMPRODUCT((Teams1=T24)*(Teams1_Score<Teams2_Score))+SUMPRODUCT((Teams2=T24)*(Teams2_Score<Teams1_Score))","v":2},{"$f":"SUMPRODUCT((Teams1=T24)*(Teams1_Score))+SUMPRODUCT((Teams2=T24)*(Teams2_Score))","v":2},{"$f":"SUMPRODUCT((Teams1=T24)*(Teams2_Score))+SUMPRODUCT((Teams2=T24)*(Teams1_Score))","v":5},-3,1,null,null,"2018-07-07","B",{"$f":"+IF(AI31<>\"\",IF(AH31>AN31,AG31,AM31),\"Vainqueur 2\")","v":"Russie"},23,2,null,3,null,{"$f":"+IF(AI33<>\"\",IF(AH33>AN33,AG33,AM33),\"Vainqueur 4\")","v":"Croatie"},24,2,null,4]
[null,{"$f":"VLOOKUP($D25,TABLEAU_MATCHS[#All],2,FALSE)","v":"2018-06-20"},{"$f":"VLOOKUP($D25,TABLEAU_MATCHS[#All],3,FALSE)","v":"18:00:00"},18,{"$f":"\"Groupe \"&VLOOKUP($I25,TABLEAU_TEAMS[[#All],[TEAM]:[GROUP_INITIAL_RANK]],2,FALSE)","v":"Groupe A"},null,null,null,{"$f":"VLOOKUP($D25,TABLEAU_MATCHS[#All],4,FALSE)","v":"Uruguay"},1,null,{"$f":"VLOOKUP($D25,TABLEAU_MATCHS[#All],5,FALSE)","v":"Arabie Saoudite"},0,null,null,null,null,null,null,null,null,null,null,null,null,null,null,null,null,null,"2018-07-06","C",{"$f":"+IF(AI34<>\"\",IF(AH34>AN34,AG34,AM34),\"Vainqueur 5\")","v":"Brésil"},10,1,null,null,null,{"$f":"+IF(AI36<>\"\",IF(AH36>AN36,AG36,AM36),\"Vainqueur 7\")","v":"Belgique"},20,2]
[null,{"$f":"VLOOKUP($D26,TABLEAU_MATCHS[#All],2,FALSE)","v":"2018-06-20"},{"$f":"VLOOKUP($D26,TABLEAU_MATCHS[#All],3,FALSE)","v":"15:00:00"},19,{"$f":"\"Groupe \"&VLOOKUP($I26,TABLEAU_TEAMS[[#All],[TEAM]:[GROUP_INITIAL_RANK]],2,FALSE)","v":"Groupe B"},null,null,null,{"$f":"VLOOKUP($D26,TABLEAU_MATCHS[#All],4,FALSE)","v":"Portugal"},1,null,{"$f":"VLOOKUP($D26,TABLEAU_MATCHS[#All],5,FALSE)","v":"Maroc"},0,null,null,null,null,null,"Rg","Groupe D","MJ","G","N","P","BP","BC","+/-","Pts",null,null,"2018-07-07","D",{"$f":"+IF(AI35<>\"\",IF(AH35>AN35,AG35,AM35),\"Vainqueur 6\")","v":"Suède"},0,0,null,null,null,{"$f":"+IF(AI37<>\"\",IF(AH37>AN37,AG37,AM37),\"Vainqueur 8\")","v":"Angleterre"},20,2]
[null,{"$f":"VLOOKUP($D27,TABLEAU_MATCHS[#All],2,FALSE)","v":"2018-06-20"},{"$f":"VLOOKUP($D27,TABLEAU_MATCHS[#All],3,FALSE)","v":"21:00:00"},20,{"$f":"\"Groupe \"&VLOOKUP($I27,TABLEAU_TEAMS[[#All],[TEAM]:[GROUP_INITIAL_RANK]],2,FALSE)","v":"Groupe B"},null,null,null,{"$f":"VLOOKUP($D27,TABLEAU_MATCHS[#All],4,FALSE)","v":"RI Iran"},0,null,{"$f":"VLOOKUP($D27,TABLEAU_MATCHS[#All],5,FALSE)","v":"Espagne"},1,null,null,null,{"$f":"INDEX($Q78:$Q81,MATCH(SMALL(COUNTIF($Q78:$Q81,\">=\"&$Q78:$Q81),ROW(INDIRECT(\"1:\"&ROWS($Q78:$Q81)))),COUNTIF($Q78:$Q81,\">=\"&$Q78:$Q81),0))","v":"09670Croatie"},{"$f":"INDEX($R78:$R81,MATCH(SMALL(COUNTIF($Q78:$Q81,\">=\"&$Q78:$Q81),ROW(INDIRECT(\"1:\"&ROWS($Q78:$Q81)))),COUNTIF($Q78:$Q81,\">=\"&$Q78:$Q81),0))","v":9670},{"$f":"INDEX($S78:$S81,MATCH(SMALL(COUNTIF($Q78:$Q81,\">=\"&$Q78:$Q81),ROW(INDIRECT(\"1:\"&ROWS($Q78:$Q81)))),COUNTIF($Q78:$Q81,\">=\"&$Q78:$Q81),0))","v":1},{"$f":"INDEX($T78:$T81,MATCH(SMALL(COUNTIF($Q78:$Q81,\">=\"&$Q78:$Q81),ROW(INDIRECT(\"1:\"&ROWS($Q78:$Q81)))),COUNTIF($Q78:$Q81,\">=\"&$Q78:$Q81),0))","v":"Croatie"},{"$f":"SUMPRODUCT((Teams1=T27)*(Teams1_Score<>\"\"))+SUMPRODUCT((Teams2=T27)*(Teams2_Score<>\"\"))","v":3},{"$f":"SUMPRODUCT((Teams1=T27)*(Teams1_Score>Teams2_Score))+SUMPRODUCT((Teams2=T27)*(Teams2_Score>Teams1_Score))","v":3},{"$f":"SUMPRODUCT((Teams1=T27)*(Teams1_Score=Teams2_Score)*(Teams1_Score<>\"\"))+SUMPRODUCT((Teams2=T27)*(Teams2_Score=Teams1_Score)*(Teams2_Score<>\"\"))","v":0},{"$f":"SUMPRODUCT((Teams1=T27)*(Teams1_Score<Teams2_Score))+SUMPRODUCT((Teams2=T27)*(Teams2_Score<Teams1_Score))","v":0},{"$f":"SUMPRODUCT((Teams1=T27)*(Teams1_Score))+SUMPRODUCT((Teams2=T27)*(Teams2_Score))","v":7},{"$f":"SUMPRODUCT((Teams1=T27)*(Teams2_Score))+SUMPRODUCT((Teams2=T27)*(Teams1_Score))","v":1},{"$f":"Y27-Z27","v":6},{"$f":"3*V27+W27","v":9}]
[null,{"$f":"VLOOKUP($D28,TABLEAU_MATCHS[#All],2,FALSE)","v":"2018-06-21"},{"$f":"VLOOKUP($D28,TABLEAU_MATCHS[#All],3,FALSE)","v":"16:00:00"},21,{"$f":"\"Groupe \"&VLOOKUP($I28,TABLEAU_TEAMS[[#All],[TEAM]:[GROUP_INITIAL_RANK]],2,FALSE)","v":"Groupe C"},null,null,null,{"$f":"VLOOKUP($D28,TABLEAU_MATCHS[#All],4,FALSE)","v":"Danemark"},1,null,{"$f":"VLOOKUP($D28,TABLEAU_MATCHS[#All],5,FALSE)","v":"Australie"},1,null,null,null,"03830Argentine",3830,2,"Argentine",{"$f":"SUMPRODUCT((Teams1=T28)*(Teams1_Score<>\"\"))+SUMPRODUCT((Teams2=T28)*(Teams2_Score<>\"\"))","v":3},{"$f":"SUMPRODUCT((Teams1=T28)*(Teams1_Score>Teams2_Score))+SUMPRODUCT((Teams2=T28)*(Teams2_Score>Teams1_Score))","v":1},{"$f":"SUMPRODUCT((Teams1=T28)*(Teams1_Score=Teams2_Score)*(Teams1_Score<>\"\"))+SUMPRODUCT((Teams2=T28)*(Teams2_Score=Teams1_Score)*(Teams2_Score<>\"\"))","v":1},{"$f":"SUMPRODUCT((Teams1=T28)*(Teams1_Score<Teams2_Score))+SUMPRODUCT((Teams2=T28)*(Teams2_Score<Teams1_Score))","v":1},{"$f":"SUMPRODUCT((Teams1=T28)*(Teams1_Score))+SUMPRODUCT((Teams2=T28)*(Teams2_Score))","v":3},{"$f":"SUMPRODUCT((Teams1=T28)*(Teams2_Score))+SUMPRODUCT((Teams2=T28)*(Teams1_Score))","v":5},-2,4,null,null,"Date","Huitième de Finale",null,null,"Buts",null,"Pen",null,null,null,"Buts",null,"Pen"]
[null,{"$f":"VLOOKUP($D29,TABLEAU_MATCHS[#All],2,FALSE)","v":"2018-06-21"},{"$f":"VLOOKUP($D29,TABLEAU_MATCHS[#All],3,FALSE)","v":"20:00:00"},22,{"$f":"\"Groupe \"&VLOOKUP($I29,TABLEAU_TEAMS[[#All],[TEAM]:[GROUP_INITIAL_RANK]],2,FALSE)","v":"Groupe C"},null,null,null,{"$f":"VLOOKUP($D29,TABLEAU_MATCHS[#All],4,FALSE)","v":"France"},1,null,{"$f":"VLOOKUP($D29,TABLEAU_MATCHS[#All],5,FALSE)","v":"Pérou"},0,null,null,null,"02930Nigeria",2930,3,"Nigeria",{"$f":"SUMPRODUCT((Teams1=T29)*(Teams1_Score<>\"\"))+SUMPRODUCT((Teams2=T29)*(Teams2_Score<>\"\"))","v":3},{"$f":"SUMPRODUCT((Teams1=T29)*(Teams1_Score>Teams2_Score))+SUMPRODUCT((Teams2=T29)*(Teams2_Score>Teams1_Score))","v":1},{"$f":"SUMPRODUCT((Teams1=T29)*(Teams1_Score=Teams2_Score)*(Teams1_Score<>\"\"))+SUMPRODUCT((Teams2=T29)*(Teams2_Score=Teams1_Score)*(Teams2_Score<>\"\"))","v":0},{"$f":"SUMPRODUCT((Teams1=T29)*(Teams1_Score<Teams2_Score))+SUMPRODUCT((Teams2=T29)*(Teams2_Score<Teams1_Score))","v":2},{"$f":"SUMPRODUCT((Teams1=T29)*(Teams1_Score))+SUMPRODUCT((Teams2=T29)*(Teams2_Score))","v":3},{"$f":"SUMPRODUCT((Teams1=T29)*(Teams2_Score))+SUMPRODUCT((Teams2=T29)*(Teams1_Score))","v":4},-1,3]
[null,{"$f":"VLOOKUP($D30,TABLEAU_MATCHS[#All],2,FALSE)","v":"2018-06-21"},{"$f":"VLOOKUP($D30,TABLEAU_MATCHS[#All],3,FALSE)","v":"21:00:00"},23,{"$f":"\"Groupe \"&VLOOKUP($I30,TABLEAU_TEAMS[[#All],[TEAM]:[GROUP_INITIAL_RANK]],2,FALSE)","v":"Groupe D"},null,null,null,{"$f":"VLOOKUP($D30,TABLEAU_MATCHS[#All],4,FALSE)","v":"Argentine"},0,null,{"$f":"VLOOKUP($D30,TABLEAU_MATCHS[#All],5,FALSE)","v":"Croatie"},3,null,null,null,"00720Islande",720,4,"Islande",{"$f":"SUMPRODUCT((Teams1=T30)*(Teams1_Score<>\"\"))+SUMPRODUCT((Teams2=T30)*(Teams2_Score<>\"\"))","v":3},{"$f":"SUMPRODUCT((Teams1=T30)*(Teams1_Score>Teams2_Score))+SUMPRODUCT((Teams2=T30)*(Teams2_Score>Teams1_Score))","v":0},{"$f":"SUMPRODUCT((Teams1=T30)*(Teams1_Score=Teams2_Score)*(Teams1_Score<>\"\"))+SUMPRODUCT((Teams2=T30)*(Teams2_Score=Teams1_Score)*(Teams2_Score<>\"\"))","v":1},{"$f":"SUMPRODUCT((Teams1=T30)*(Teams1_Score<Teams2_Score))+SUMPRODUCT((Teams2=T30)*(Teams2_Score<Teams1_Score))","v":2},{"$f":"SUMPRODUCT((Teams1=T30)*(Teams1_Score))+SUMPRODUCT((Teams2=T30)*(Teams2_Score))","v":2},{"$f":"SUMPRODUCT((Teams1=T30)*(Teams2_Score))+SUMPRODUCT((Teams2=T30)*(Teams1_Score))","v":5},-3,1,null,null,"2018-06-30",1,{"$f":"IF(SUM(U9:U12)=0,\"1er Groupe A\",IF(COUNTIF(S9:S12,1)=1,VLOOKUP(1,S9:T12,2,FALSE),IF(COUNTIF(S9:S12,1)>=2,\"Tirage au Sort A1\")))","v":"Uruguay"},{"$f":"AI30*10+AK30","v":20},2,null,null,null,{"$f":"IF(SUM(U15:U18)=0,\"2nd Groupe B\",IF(OR(COUNTIF(S15:S18,1)>1,COUNTIF(S15:S18,2)>1),\"Tirage au sort B2\",VLOOKUP(2,S15:T18,2,FALSE)))","v":"Portugal"},{"$f":"AO30*10+AQ30","v":10},1]
[null,{"$f":"VLOOKUP($D31,TABLEAU_MATCHS[#All],2,FALSE)","v":"2018-06-22"},{"$f":"VLOOKUP($D31,TABLEAU_MATCHS[#All],3,FALSE)","v":"18:00:00"},24,{"$f":"\"Groupe \"&VLOOKUP($I31,TABLEAU_TEAMS[[#All],[TEAM]:[GROUP_INITIAL_RANK]],2,FALSE)","v":"Groupe D"},null,null,null,{"$f":"VLOOKUP($D31,TABLEAU_MATCHS[#All],4,FALSE)","v":"Nigeria"},2,null,{"$f":"VLOOKUP($D31,TABLEAU_MATCHS[#All],5,FALSE)","v":"Islande"},0,null,null,null,null,null,null,null,null,null,null,null,null,null,null,null,null,null,"2018-07-01",2,{"$f":"IF(SUM(U15:U18)=0,\"1er Groupe B\",IF(COUNTIF(S15:S18,1)=1,VLOOKUP(1,S15:T18,2,FALSE),IF(COUNTIF(S15:S18,1)>=2,\"Tirage au Sort B1\")))","v":"Espagne"},{"$f":"AI31*10+AK31","v":13},1,null,3,null,{"$f":"IF(SUM(U9:U12)=0,\"2nd Groupe A\",IF(OR(COUNTIF(S9:S12,1)>1,COUNTIF(S9:S12,2)>1),\"Tirage au sort A2\",VLOOKUP(2,S9:T12,2,FALSE)))","v":"Russie"},14,1,null,4]
[null,{"$f":"VLOOKUP($D32,TABLEAU_MATCHS[#All],2,FALSE)","v":"2018-06-22"},{"$f":"VLOOKUP($D32,TABLEAU_MATCHS[#All],3,FALSE)","v":"15:00:00"},25,{"$f":"\"Groupe \"&VLOOKUP($I32,TABLEAU_TEAMS[[#All],[TEAM]:[GROUP_INITIAL_RANK]],2,FALSE)","v":"Groupe E"},null,null,null,{"$f":"VLOOKUP($D32,TABLEAU_MATCHS[#All],4,FALSE)","v":"Brésil"},2,null,{"$f":"VLOOKUP($D32,TABLEAU_MATCHS[#All],5,FALSE)","v":"Costa Rica"},0,null,null,null,null,null,"Rg","Groupe E","MJ","G","N","P","BP","BC","+/-","Pts",null,null,"2017-06-30",3,{"$f":"IF(SUM(U21:U24)=0,\"1er Groupe C\",IF(COUNTIF(S21:S24,1)=1,VLOOKUP(1,S21:T24,2,FALSE),IF(COUNTIF(S21:S24,1)>=2,\"Tirage au Sort C1\")))","v":"France"},40,4,null,null,null,{"$f":"IF(SUM(U27:U30)=0,\"2nd Groupe D\",IF(OR(COUNTIF(S27:S30,1)>1,COUNTIF(S27:S30,2)>1),\"Tirage au sort D2\",VLOOKUP(2,S27:T30,2,FALSE)))","v":"Argentine"},30,3]
[null,{"$f":"VLOOKUP($D33,TABLEAU_MATCHS[#All],2,FALSE)","v":"2018-06-22"},{"$f":"VLOOKUP($D33,TABLEAU_MATCHS[#All],3,FALSE)","v":"20:00:00"},26,{"$f":"\"Groupe \"&VLOOKUP($I33,TABLEAU_TEAMS[[#All],[TEAM]:[GROUP_INITIAL_RANK]],2,FALSE)","v":"Groupe E"},null,null,null,{"$f":"VLOOKUP($D33,TABLEAU_MATCHS[#All],4,FALSE)","v":"Serbie"},1,null,{"$f":"VLOOKUP($D33,TABLEAU_MATCHS[#All],5,FALSE)","v":"Suisse"},2,null,null,null,{"$f":"INDEX($Q84:$Q87,MATCH(SMALL(COUNTIF($Q84:$Q87,\">=\"&$Q84:$Q87),ROW(INDIRECT(\"1:\"&ROWS($Q84:$Q87)))),COUNTIF($Q84:$Q87,\">=\"&$Q84:$Q87),0))","v":"07450Brésil"},{"$f":"INDEX($R84:$R87,MATCH(SMALL(COUNTIF($Q84:$Q87,\">=\"&$Q84:$Q87),ROW(INDIRECT(\"1:\"&ROWS($Q84:$Q87)))),COUNTIF($Q84:$Q87,\">=\"&$Q84:$Q87),0))","v":7450},{"$f":"INDEX($S84:$S87,MATCH(SMALL(COUNTIF($Q84:$Q87,\">=\"&$Q84:$Q87),ROW(INDIRECT(\"1:\"&ROWS($Q84:$Q87)))),COUNTIF($Q84:$Q87,\">=\"&$Q84:$Q87),0))","v":1},{"$f":"INDEX($T84:$T87,MATCH(SMALL(COUNTIF($Q84:$Q87,\">=\"&$Q84:$Q87),ROW(INDIRECT(\"1:\"&ROWS($Q84:$Q87)))),COUNTIF($Q84:$Q87,\">=\"&$Q84:$Q87),0))","v":"Brésil"},{"$f":"SUMPRODUCT((Teams1=T33)*(Teams1_Score<>\"\"))+SUMPRODUCT((Teams2=T33)*(Teams2_Score<>\"\"))","v":3},{"$f":"SUMPRODUCT((Teams1=T33)*(Teams1_Score>Teams2_Score))+SUMPRODUCT((Teams2=T33)*(Teams2_Score>Teams1_Score))","v":2},{"$f":"SUMPRODUCT((Teams1=T33)*(Teams1_Score=Teams2_Score)*(Teams1_Score<>\"\"))+SUMPRODUCT((Teams2=T33)*(Teams2_Score=Teams1_Score)*(Teams2_Score<>\"\"))","v":1},{"$f":"SUMPRODUCT((Teams1=T33)*(Teams1_Score<Teams2_Score))+SUMPRODUCT((Teams2=T33)*(Teams2_Score<Teams1_Score))","v":0},{"$f":"SUMPRODUCT((Teams1=T33)*(Teams1_Score))+SUMPRODUCT((Teams2=T33)*(Teams2_Score))","v":5},{"$f":"SUMPRODUCT((Teams1=T33)*(Teams2_Score))+SUMPRODUCT((Teams2=T33)*(Teams1_Score))","v":1},{"$f":"Y33-Z33","v":4},{"$f":"3*V33+W33","v":7},null,null,"2018-07-01",4,{"$f":"IF(SUM(U27:U30)=0,\"1er Groupe D\",IF(COUNTIF(S27:S30,1)=1,VLOOKUP(1,S27:T30,2,FALSE),IF(COUNTIF(S27:S30,1)>=2,\"Tirage au Sort D1\")))","v":"Croatie"},13,1,null,3,null,{"$f":"IF(SUM(U21:U24)=0,\"2nd Groupe C\",IF(OR(COUNTIF(S21:S24,1)>1,COUNTIF(S21:S24,2)>1),\"Tirage au sort C2\",VLOOKUP(2,S21:T24,2,FALSE)))","v":"Danemark"},12,1,null,2]
[null,{"$f":"VLOOKUP($D34,TABLEAU_MATCHS[#All],2,FALSE)","v":"2018-06-23"},{"$f":"VLOOKUP($D34,TABLEAU_MATCHS[#All],3,FALSE)","v":"18:00:00"},27,{"$f":"\"Groupe \"&VLOOKUP($I34,TABLEAU_TEAMS[[#All],[TEAM]:[GROUP_INITIAL_RANK]],2,FALSE)","v":"Groupe F"},null,null,null,{"$f":"VLOOKUP($D34,TABLEAU_MATCHS[#All],4,FALSE)","v":"République de Corée"},1,null,{"$f":"VLOOKUP($D34,TABLEAU_MATCHS[#All],5,FALSE)","v":"Mexique"},2,null,null,null,"05150Suisse",5150,2,"Suisse",{"$f":"SUMPRODUCT((Teams1=T34)*(Teams1_Score<>\"\"))+SUMPRODUCT((Teams2=T34)*(Teams2_Score<>\"\"))","v":3},{"$f":"SUMPRODUCT((Teams1=T34)*(Teams1_Score>Teams2_Score))+SUMPRODUCT((Teams2=T34)*(Teams2_Score>Teams1_Score))","v":1},{"$f":"SUMPRODUCT((Teams1=T34)*(Teams1_Score=Teams2_Score)*(Teams1_Score<>\"\"))+SUMPRODUCT((Teams2=T34)*(Teams2_Score=Teams1_Score)*(Teams2_Score<>\"\"))","v":2},{"$f":"SUMPRODUCT((Teams1=T34)*(Teams1_Score<Teams2_Score))+SUMPRODUCT((Teams2=T34)*(Teams2_Score<Teams1_Score))","v":0},{"$f":"SUMPRODUCT((Teams1=T34)*(Teams1_Score))+SUMPRODUCT((Teams2=T34)*(Teams2_Score))","v":5},{"$f":"SUMPRODUCT((Teams1=T34)*(Teams2_Score))+SUMPRODUCT((Teams2=T34)*(Teams1_Score))","v":4},1,5,null,null,"2018-07-02",5,{"$f":"IF(SUM(U33:U36)=0,\"1er Groupe E\",IF(COUNTIF(S33:S36,1)=1,VLOOKUP(1,S33:T36,2,FALSE),IF(COUNTIF(S33:S36,1)>=2,\"Tirage au Sort E1\")))","v":"Brésil"},20,2,null,null,null,{"$f":"IF(SUM(U39:U42)=0,\"2nd Groupe F\",IF(OR(COUNTIF(S39:S42,1)>1,COUNTIF(S39:S42,2)>1),\"Tirage au sort F2\",VLOOKUP(2,S39:T42,2,FALSE)))","v":"Mexique"},0,0]
[null,{"$f":"VLOOKUP($D35,TABLEAU_MATCHS[#All],2,FALSE)","v":"2018-06-23"},{"$f":"VLOOKUP($D35,TABLEAU_MATCHS[#All],3,FALSE)","v":"21:00:00"},28,{"$f":"\"Groupe \"&VLOOKUP($I35,TABLEAU_TEAMS[[#All],[TEAM]:[GROUP_INITIAL_RANK]],2,FALSE)","v":"Groupe F"},null,null,null,{"$f":"VLOOKUP($D35,TABLEAU_MATCHS[#All],4,FALSE)","v":"Allemagne"},2,null,{"$f":"VLOOKUP($D35,TABLEAU_MATCHS[#All],5,FALSE)","v":"Suède"},1,null,null,null,"02820Serbie",2820,3,"Serbie",{"$f":"SUMPRODUCT((Teams1=T35)*(Teams1_Score<>\"\"))+SUMPRODUCT((Teams2=T35)*(Teams2_Score<>\"\"))","v":3},{"$f":"SUMPRODUCT((Teams1=T35)*(Teams1_Score>Teams2_Score))+SUMPRODUCT((Teams2=T35)*(Teams2_Score>Teams1_Score))","v":1},{"$f":"SUMPRODUCT((Teams1=T35)*(Teams1_Score=Teams2_Score)*(Teams1_Score<>\"\"))+SUMPRODUCT((Teams2=T35)*(Teams2_Score=Teams1_Score)*(Teams2_Score<>\"\"))","v":0},{"$f":"SUMPRODUCT((Teams1=T35)*(Teams1_Score<Teams2_Score))+SUMPRODUCT((Teams2=T35)*(Teams2_Score<Teams1_Score))","v":2},{"$f":"SUMPRODUCT((Teams1=T35)*(Teams1_Score))+SUMPRODUCT((Teams2=T35)*(Teams2_Score))","v":2},{"$f":"SUMPRODUCT((Teams1=T35)*(Teams2_Score))+SUMPRODUCT((Teams2=T35)*(Teams1_Score))","v":4},-2,3,null,null,"2018-07-03",6,{"$f":"IF(SUM(U39:U42)=0,\"1er Groupe F\",IF(COUNTIF(S39:S42,1)=1,VLOOKUP(1,S39:T42,2,FALSE),IF(COUNTIF(S39:S42,1)>=2,\"Tirage au Sort F1\")))","v":"Suède"},10,1,null,null,null,{"$f":"IF(SUM(U33:U36)=0,\"2nd Groupe E\",IF(OR(COUNTIF(S33:S36,1)>1,COUNTIF(S33:S36,2)>1),\"Tirage au sort E2\",VLOOKUP(2,S33:T36,2,FALSE)))","v":"Suisse"},0,0]
[null,{"$f":"VLOOKUP($D36,TABLEAU_MATCHS[#All],2,FALSE)","v":"2018-06-23"},{"$f":"VLOOKUP($D36,TABLEAU_MATCHS[#All],3,FALSE)","v":"15:00:00"},29,{"$f":"\"Groupe \"&VLOOKUP($I36,TABLEAU_TEAMS[[#All],[TEAM]:[GROUP_INITIAL_RANK]],2,FALSE)","v":"Groupe G"},null,null,null,{"$f":"VLOOKUP($D36,TABLEAU_MATCHS[#All],4,FALSE)","v":"Belgique"},5,null,{"$f":"VLOOKUP($D36,TABLEAU_MATCHS[#All],5,FALSE)","v":"Tunisie"},2,null,null,null,"00720Costa Rica",720,4,"Costa Rica",{"$f":"SUMPRODUCT((Teams1=T36)*(Teams1_Score<>\"\"))+SUMPRODUCT((Teams2=T36)*(Teams2_Score<>\"\"))","v":3},{"$f":"SUMPRODUCT((Teams1=T36)*(Teams1_Score>Teams2_Score))+SUMPRODUCT((Teams2=T36)*(Teams2_Score>Teams1_Score))","v":0},{"$f":"SUMPRODUCT((Teams1=T36)*(Teams1_Score=Teams2_Score)*(Teams1_Score<>\"\"))+SUMPRODUCT((Teams2=T36)*(Teams2_Score=Teams1_Score)*(Teams2_Score<>\"\"))","v":1},{"$f":"SUMPRODUCT((Teams1=T36)*(Teams1_Score<Teams2_Score))+SUMPRODUCT((Teams2=T36)*(Teams2_Score<Teams1_Score))","v":2},{"$f":"SUMPRODUCT((Teams1=T36)*(Teams1_Score))+SUMPRODUCT((Teams2=T36)*(Teams2_Score))","v":2},{"$f":"SUMPRODUCT((Teams1=T36)*(Teams2_Score))+SUMPRODUCT((Teams2=T36)*(Teams1_Score))","v":5},-3,1,null,null,"2018-07-02",7,{"$f":"IF(SUM(U45:U48)=0,\"1er Groupe G\",IF(COUNTIF(S45:S48,1)=1,VLOOKUP(1,S45:T48,2,FALSE),IF(COUNTIF(S45:S48,1)>=2,\"Tirage au Sort G1\")))","v":"Belgique"},30,3,null,null,null,"Japon",20,2]
[null,{"$f":"VLOOKUP($D37,TABLEAU_MATCHS[#All],2,FALSE)","v":"2018-06-24"},{"$f":"VLOOKUP($D37,TABLEAU_MATCHS[#All],3,FALSE)","v":"15:00:00"},30,{"$f":"\"Groupe \"&VLOOKUP($I37,TABLEAU_TEAMS[[#All],[TEAM]:[GROUP_INITIAL_RANK]],2,FALSE)","v":"Groupe G"},null,null,null,{"$f":"VLOOKUP($D37,TABLEAU_MATCHS[#All],4,FALSE)","v":"Angleterre"},6,null,{"$f":"VLOOKUP($D37,TABLEAU_MATCHS[#All],5,FALSE)","v":"Panama"},1,null,null,null,null,null,null,null,null,null,null,null,null,null,null,null,null,null,"2018-07-03",8,"Colombie",13,1,null,3,null,{"$f":"IF(SUM(U45:U48)=0,\"2nd Groupe G\",IF(OR(COUNTIF(S45:S48,1)>1,COUNTIF(S45:S48,2)>1),\"Tirage au sort G2\",VLOOKUP(2,S45:T48,2,FALSE)))","v":"Angleterre"},14,1,null,4]
[null,{"$f":"VLOOKUP($D38,TABLEAU_MATCHS[#All],2,FALSE)","v":"2018-06-24"},{"$f":"VLOOKUP($D38,TABLEAU_MATCHS[#All],3,FALSE)","v":"20:00:00"},31,{"$f":"\"Groupe \"&VLOOKUP($I38,TABLEAU_TEAMS[[#All],[TEAM]:[GROUP_INITIAL_RANK]],2,FALSE)","v":"Groupe H"},null,null,null,{"$f":"VLOOKUP($D38,TABLEAU_MATCHS[#All],4,FALSE)","v":"Japon"},2,null,{"$f":"VLOOKUP($D38,TABLEAU_MATCHS[#All],5,FALSE)","v":"Sénégal"},2,null,null,null,null,null,"Rg","Groupe F","MJ","G","N","P","BP","BC","+/-","Pts"]
[null,{"$f":"VLOOKUP($D39,TABLEAU_MATCHS[#All],2,FALSE)","v":"2018-06-24"},{"$f":"VLOOKUP($D39,TABLEAU_MATCHS[#All],3,FALSE)","v":"21:00:00"},32,{"$f":"\"Groupe \"&VLOOKUP($I39,TABLEAU_TEAMS[[#All],[TEAM]:[GROUP_INITIAL_RANK]],2,FALSE)","v":"Groupe H"},null,null,null,{"$f":"VLOOKUP($D39,TABLEAU_MATCHS[#All],4,FALSE)","v":"Pologne"},0,null,{"$f":"VLOOKUP($D39,TABLEAU_MATCHS[#All],5,FALSE)","v":"Colombie"},3,null,null,null,{"$f":"INDEX($Q90:$Q93,MATCH(SMALL(COUNTIF($Q90:$Q93,\">=\"&$Q90:$Q93),ROW(INDIRECT(\"1:\"&ROWS($Q90:$Q93)))),COUNTIF($Q90:$Q93,\">=\"&$Q90:$Q93),0))","v":"06350Suède"},{"$f":"INDEX($R90:$R93,MATCH(SMALL(COUNTIF($Q90:$Q93,\">=\"&$Q90:$Q93),ROW(INDIRECT(\"1:\"&ROWS($Q90:$Q93)))),COUNTIF($Q90:$Q93,\">=\"&$Q90:$Q93),0))","v":6350},{"$f":"INDEX($S90:$S93,MATCH(SMALL(COUNTIF($Q90:$Q93,\">=\"&$Q90:$Q93),ROW(INDIRECT(\"1:\"&ROWS($Q90:$Q93)))),COUNTIF($Q90:$Q93,\">=\"&$Q90:$Q93),0))","v":1},{"$f":"INDEX($T90:$T93,MATCH(SMALL(COUNTIF($Q90:$Q93,\">=\"&$Q90:$Q93),ROW(INDIRECT(\"1:\"&ROWS($Q90:$Q93)))),COUNTIF($Q90:$Q93,\">=\"&$Q90:$Q93),0))","v":"Suède"},{"$f":"SUMPRODUCT((Teams1=T39)*(Teams1_Score<>\"\"))+SUMPRODUCT((Teams2=T39)*(Teams2_Score<>\"\"))","v":3},{"$f":"SUMPRODUCT((Teams1=T39)*(Teams1_Score>Teams2_Score))+SUMPRODUCT((Teams2=T39)*(Teams2_Score>Teams1_Score))","v":2},{"$f":"SUMPRODUCT((Teams1=T39)*(Teams1_Score=Teams2_Score)*(Teams1_Score<>\"\"))+SUMPRODUCT((Teams2=T39)*(Teams2_Score=Teams1_Score)*(Teams2_Score<>\"\"))","v":0},{"$f":"SUMPRODUCT((Teams1=T39)*(Teams1_Score<Teams2_Score))+SUMPRODUCT((Teams2=T39)*(Teams2_Score<Teams1_Score))","v":1},{"$f":"SUMPRODUCT((Teams1=T39)*(Teams1_Score))+SUMPRODUCT((Teams2=T39)*(Teams2_Score))","v":5},{"$f":"SUMPRODUCT((Teams1=T39)*(Teams2_Score))+SUMPRODUCT((Teams2=T39)*(Teams1_Score))","v":2},{"$f":"Y39-Z39","v":3},{"$f":"3*V39+W39","v":6}]
[null,{"$f":"VLOOKUP($D40,TABLEAU_MATCHS[#All],2,FALSE)","v":"2018-06-25"},{"$f":"VLOOKUP($D40,TABLEAU_MATCHS[#All],3,FALSE)","v":"18:00:00"},33,{"$f":"\"Groupe \"&VLOOKUP($I40,TABLEAU_TEAMS[[#All],[TEAM]:[GROUP_INITIAL_RANK]],2,FALSE)","v":"Groupe A"},null,null,null,{"$f":"VLOOKUP($D40,TABLEAU_MATCHS[#All],4,FALSE)","v":"Uruguay"},3,null,{"$f":"VLOOKUP($D40,TABLEAU_MATCHS[#All],5,FALSE)","v":"Russie"},0,null,null,null,"05930Mexique",5930,2,"Mexique",{"$f":"SUMPRODUCT((Teams1=T40)*(Teams1_Score<>\"\"))+SUMPRODUCT((Teams2=T40)*(Teams2_Score<>\"\"))","v":3},{"$f":"SUMPRODUCT((Teams1=T40)*(Teams1_Score>Teams2_Score))+SUMPRODUCT((Teams2=T40)*(Teams2_Score>Teams1_Score))","v":2},{"$f":"SUMPRODUCT((Teams1=T40)*(Teams1_Score=Teams2_Score)*(Teams1_Score<>\"\"))+SUMPRODUCT((Teams2=T40)*(Teams2_Score=Teams1_Score)*(Teams2_Score<>\"\"))","v":0},{"$f":"SUMPRODUCT((Teams1=T40)*(Teams1_Score<Teams2_Score))+SUMPRODUCT((Teams2=T40)*(Teams2_Score<Teams1_Score))","v":1},{"$f":"SUMPRODUCT((Teams1=T40)*(Teams1_Score))+SUMPRODUCT((Teams2=T40)*(Teams2_Score))","v":3},{"$f":"SUMPRODUCT((Teams1=T40)*(Teams2_Score))+SUMPRODUCT((Teams2=T40)*(Teams1_Score))","v":4},-1,6]
[null,{"$f":"VLOOKUP($D41,TABLEAU_MATCHS[#All],2,FALSE)","v":"2018-06-25"},{"$f":"VLOOKUP($D41,TABLEAU_MATCHS[#All],3,FALSE)","v":"17:00:00"},34,{"$f":"\"Groupe \"&VLOOKUP($I41,TABLEAU_TEAMS[[#All],[TEAM]:[GROUP_INITIAL_RANK]],2,FALSE)","v":"Groupe A"},null,null,null,{"$f":"VLOOKUP($D41,TABLEAU_MATCHS[#All],4,FALSE)","v":"Arabie Saoudite"},2,null,{"$f":"VLOOKUP($D41,TABLEAU_MATCHS[#All],5,FALSE)","v":"Egypte"},1,null,null,null,"03030République de Corée",3030,3,"République de Corée",{"$f":"SUMPRODUCT((Teams1=T41)*(Teams1_Score<>\"\"))+SUMPRODUCT((Teams2=T41)*(Teams2_Score<>\"\"))","v":3},{"$f":"SUMPRODUCT((Teams1=T41)*(Teams1_Score>Teams2_Score))+SUMPRODUCT((Teams2=T41)*(Teams2_Score>Teams1_Score))","v":1},{"$f":"SUMPRODUCT((Teams1=T41)*(Teams1_Score=Teams2_Score)*(Teams1_Score<>\"\"))+SUMPRODUCT((Teams2=T41)*(Teams2_Score=Teams1_Score)*(Teams2_Score<>\"\"))","v":0},{"$f":"SUMPRODUCT((Teams1=T41)*(Teams1_Score<Teams2_Score))+SUMPRODUCT((Teams2=T41)*(Teams2_Score<Teams1_Score))","v":2},{"$f":"SUMPRODUCT((Teams1=T41)*(Teams1_Score))+SUMPRODUCT((Teams2=T41)*(Teams2_Score))","v":3},{"$f":"SUMPRODUCT((Teams1=T41)*(Teams2_Score))+SUMPRODUCT((Teams2=T41)*(Teams1_Score))","v":3},0,3]
[null,{"$f":"VLOOKUP($D42,TABLEAU_MATCHS[#All],2,FALSE)","v":"2018-06-25"},{"$f":"VLOOKUP($D42,TABLEAU_MATCHS[#All],3,FALSE)","v":"21:00:00"},35,{"$f":"\"Groupe \"&VLOOKUP($I42,TABLEAU_TEAMS[[#All],[TEAM]:[GROUP_INITIAL_RANK]],2,FALSE)","v":"Groupe B"},null,null,null,{"$f":"VLOOKUP($D42,TABLEAU_MATCHS[#All],4,FALSE)","v":"RI Iran"},1,null,{"$f":"VLOOKUP($D42,TABLEAU_MATCHS[#All],5,FALSE)","v":"Portugal"},1,null,null,null,"02820Allemagne",2820,4,"Allemagne",{"$f":"SUMPRODUCT((Teams1=T42)*(Teams1_Score<>\"\"))+SUMPRODUCT((Teams2=T42)*(Teams2_Score<>\"\"))","v":3},{"$f":"SUMPRODUCT((Teams1=T42)*(Teams1_Score>Teams2_Score))+SUMPRODUCT((Teams2=T42)*(Teams2_Score>Teams1_Score))","v":1},{"$f":"SUMPRODUCT((Teams1=T42)*(Teams1_Score=Teams2_Score)*(Teams1_Score<>\"\"))+SUMPRODUCT((Teams2=T42)*(Teams2_Score=Teams1_Score)*(Teams2_Score<>\"\"))","v":0},{"$f":"SUMPRODUCT((Teams1=T42)*(Teams1_Score<Teams2_Score))+SUMPRODUCT((Teams2=T42)*(Teams2_Score<Teams1_Score))","v":2},{"$f":"SUMPRODUCT((Teams1=T42)*(Teams1_Score))+SUMPRODUCT((Teams2=T42)*(Teams2_Score))","v":2},{"$f":"SUMPRODUCT((Teams1=T42)*(Teams2_Score))+SUMPRODUCT((Teams2=T42)*(Teams1_Score))","v":4},-2,3]
[null,{"$f":"VLOOKUP($D43,TABLEAU_MATCHS[#All],2,FALSE)","v":"2018-06-25"},{"$f":"VLOOKUP($D43,TABLEAU_MATCHS[#All],3,FALSE)","v":"20:00:00"},36,{"$f":"\"Groupe \"&VLOOKUP($I43,TABLEAU_TEAMS[[#All],[TEAM]:[GROUP_INITIAL_RANK]],2,FALSE)","v":"Groupe B"},null,null,null,{"$f":"VLOOKUP($D43,TABLEAU_MATCHS[#All],4,FALSE)","v":"Espagne"},2,null,{"$f":"VLOOKUP($D43,TABLEAU_MATCHS[#All],5,FALSE)","v":"Maroc"},2]
[null,{"$f":"VLOOKUP($D44,TABLEAU_MATCHS[#All],2,FALSE)","v":"2018-06-26"},{"$f":"VLOOKUP($D44,TABLEAU_MATCHS[#All],3,FALSE)","v":"17:00:00"},37,{"$f":"\"Groupe \"&VLOOKUP($I44,TABLEAU_TEAMS[[#All],[TEAM]:[GROUP_INITIAL_RANK]],2,FALSE)","v":"Groupe C"},null,null,null,{"$f":"VLOOKUP($D44,TABLEAU_MATCHS[#All],4,FALSE)","v":"Danemark"},0,null,{"$f":"VLOOKUP($D44,TABLEAU_MATCHS[#All],5,FALSE)","v":"France"},0,null,null,null,null,null,"Rg","Groupe G","MJ","G","N","P","BP","BC","+/-","Pts"]
[null,{"$f":"VLOOKUP($D45,TABLEAU_MATCHS[#All],2,FALSE)","v":"2018-06-26"},{"$f":"VLOOKUP($D45,TABLEAU_MATCHS[#All],3,FALSE)","v":"17:00:00"},38,{"$f":"\"Groupe \"&VLOOKUP($I45,TABLEAU_TEAMS[[#All],[TEAM]:[GROUP_INITIAL_RANK]],2,FALSE)","v":"Groupe C"},null,null,null,{"$f":"VLOOKUP($D45,TABLEAU_MATCHS[#All],4,FALSE)","v":"Australie"},0,null,{"$f":"VLOOKUP($D45,TABLEAU_MATCHS[#All],5,FALSE)","v":"Pérou"},2,null,null,null,{"$f":"INDEX($Q96:$Q99,MATCH(SMALL(COUNTIF($Q96:$Q99,\">=\"&$Q96:$Q99),ROW(INDIRECT(\"1:\"&ROWS($Q96:$Q99)))),COUNTIF($Q96:$Q99,\">=\"&$Q96:$Q99),0))","v":"09790Belgique"},{"$f":"INDEX($R96:$R99,MATCH(SMALL(COUNTIF($Q96:$Q99,\">=\"&$Q96:$Q99),ROW(INDIRECT(\"1:\"&ROWS($Q96:$Q99)))),COUNTIF($Q96:$Q99,\">=\"&$Q96:$Q99),0))","v":9790},{"$f":"INDEX($S96:$S99,MATCH(SMALL(COUNTIF($Q96:$Q99,\">=\"&$Q96:$Q99),ROW(INDIRECT(\"1:\"&ROWS($Q96:$Q99)))),COUNTIF($Q96:$Q99,\">=\"&$Q96:$Q99),0))","v":1},{"$f":"INDEX($T96:$T99,MATCH(SMALL(COUNTIF($Q96:$Q99,\">=\"&$Q96:$Q99),ROW(INDIRECT(\"1:\"&ROWS($Q96:$Q99)))),COUNTIF($Q96:$Q99,\">=\"&$Q96:$Q99),0))","v":"Belgique"},{"$f":"SUMPRODUCT((Teams1=T45)*(Teams1_Score<>\"\"))+SUMPRODUCT((Teams2=T45)*(Teams2_Score<>\"\"))","v":3},{"$f":"SUMPRODUCT((Teams1=T45)*(Teams1_Score>Teams2_Score))+SUMPRODUCT((Teams2=T45)*(Teams2_Score>Teams1_Score))","v":3},{"$f":"SUMPRODUCT((Teams1=T45)*(Teams1_Score=Teams2_Score)*(Teams1_Score<>\"\"))+SUMPRODUCT((Teams2=T45)*(Teams2_Score=Teams1_Score)*(Teams2_Score<>\"\"))","v":0},{"$f":"SUMPRODUCT((Teams1=T45)*(Teams1_Score<Teams2_Score))+SUMPRODUCT((Teams2=T45)*(Teams2_Score<Teams1_Score))","v":0},{"$f":"SUMPRODUCT((Teams1=T45)*(Teams1_Score))+SUMPRODUCT((Teams2=T45)*(Teams2_Score))","v":9},{"$f":"SUMPRODUCT((Teams1=T45)*(Teams2_Score))+SUMPRODUCT((Teams2=T45)*(Teams1_Score))","v":2},{"$f":"Y45-Z45","v":7},{"$f":"3*V45+W45","v":9}]
[null,{"$f":"VLOOKUP($D46,TABLEAU_MATCHS[#All],2,FALSE)","v":"2018-06-26"},{"$f":"VLOOKUP($D46,TABLEAU_MATCHS[#All],3,FALSE)","v":"21:00:00"},39,{"$f":"\"Groupe \"&VLOOKUP($I46,TABLEAU_TEAMS[[#All],[TEAM]:[GROUP_INITIAL_RANK]],2,FALSE)","v":"Groupe D"},null,null,null,{"$f":"VLOOKUP($D46,TABLEAU_MATCHS[#All],4,FALSE)","v":"Nigeria"},1,null,{"$f":"VLOOKUP($D46,TABLEAU_MATCHS[#All],5,FALSE)","v":"Argentine"},2,null,null,null,"06580Angleterre",6580,2,"Angleterre",{"$f":"SUMPRODUCT((Teams1=T46)*(Teams1_Score<>\"\"))+SUMPRODUCT((Teams2=T46)*(Teams2_Score<>\"\"))","v":3},{"$f":"SUMPRODUCT((Teams1=T46)*(Teams1_Score>Teams2_Score))+SUMPRODUCT((Teams2=T46)*(Teams2_Score>Teams1_Score))","v":2},{"$f":"SUMPRODUCT((Teams1=T46)*(Teams1_Score=Teams2_Score)*(Teams1_Score<>\"\"))+SUMPRODUCT((Teams2=T46)*(Teams2_Score=Teams1_Score)*(Teams2_Score<>\"\"))","v":0},{"$f":"SUMPRODUCT((Teams1=T46)*(Teams1_Score<Teams2_Score))+SUMPRODUCT((Teams2=T46)*(Teams2_Score<Teams1_Score))","v":1},{"$f":"SUMPRODUCT((Teams1=T46)*(Teams1_Score))+SUMPRODUCT((Teams2=T46)*(Teams2_Score))","v":8},{"$f":"SUMPRODUCT((Teams1=T46)*(Teams2_Score))+SUMPRODUCT((Teams2=T46)*(Teams1_Score))","v":3},5,6]
[null,{"$f":"VLOOKUP($D47,TABLEAU_MATCHS[#All],2,FALSE)","v":"2018-06-26"},{"$f":"VLOOKUP($D47,TABLEAU_MATCHS[#All],3,FALSE)","v":"21:00:00"},40,{"$f":"\"Groupe \"&VLOOKUP($I47,TABLEAU_TEAMS[[#All],[TEAM]:[GROUP_INITIAL_RANK]],2,FALSE)","v":"Groupe D"},null,null,null,{"$f":"VLOOKUP($D47,TABLEAU_MATCHS[#All],4,FALSE)","v":"Islande"},1,null,{"$f":"VLOOKUP($D47,TABLEAU_MATCHS[#All],5,FALSE)","v":"Croatie"},2,null,null,null,"02750Tunisie",2750,3,"Tunisie",{"$f":"SUMPRODUCT((Teams1=T47)*(Teams1_Score<>\"\"))+SUMPRODUCT((Teams2=T47)*(Teams2_Score<>\"\"))","v":3},{"$f":"SUMPRODUCT((Teams1=T47)*(Teams1_Score>Teams2_Score))+SUMPRODUCT((Teams2=T47)*(Teams2_Score>Teams1_Score))","v":1},{"$f":"SUMPRODUCT((Teams1=T47)*(Teams1_Score=Teams2_Score)*(Teams1_Score<>\"\"))+SUMPRODUCT((Teams2=T47)*(Teams2_Score=Teams1_Score)*(Teams2_Score<>\"\"))","v":0},{"$f":"SUMPRODUCT((Teams1=T47)*(Teams1_Score<Teams2_Score))+SUMPRODUCT((Teams2=T47)*(Teams2_Score<Teams1_Score))","v":2},{"$f":"SUMPRODUCT((Teams1=T47)*(Teams1_Score))+SUMPRODUCT((Teams2=T47)*(Teams2_Score))","v":5},{"$f":"SUMPRODUCT((Teams1=T47)*(Teams2_Score))+SUMPRODUCT((Teams2=T47)*(Teams1_Score))","v":8},-3,3]
[null,{"$f":"VLOOKUP($D48,TABLEAU_MATCHS[#All],2,FALSE)","v":"2018-06-27"},{"$f":"VLOOKUP($D48,TABLEAU_MATCHS[#All],3,FALSE)","v":"21:00:00"},41,{"$f":"\"Groupe \"&VLOOKUP($I48,TABLEAU_TEAMS[[#All],[TEAM]:[GROUP_INITIAL_RANK]],2,FALSE)","v":"Groupe E"},null,null,null,{"$f":"VLOOKUP($D48,TABLEAU_MATCHS[#All],4,FALSE)","v":"Serbie"},0,null,{"$f":"VLOOKUP($D48,TABLEAU_MATCHS[#All],5,FALSE)","v":"Brésil"},2,null,null,null,"-00880Panama",-880,4,"Panama",{"$f":"SUMPRODUCT((Teams1=T48)*(Teams1_Score<>\"\"))+SUMPRODUCT((Teams2=T48)*(Teams2_Score<>\"\"))","v":3},{"$f":"SUMPRODUCT((Teams1=T48)*(Teams1_Score>Teams2_Score))+SUMPRODUCT((Teams2=T48)*(Teams2_Score>Teams1_Score))","v":0},{"$f":"SUMPRODUCT((Teams1=T48)*(Teams1_Score=Teams2_Score)*(Teams1_Score<>\"\"))+SUMPRODUCT((Teams2=T48)*(Teams2_Score=Teams1_Score)*(Teams2_Score<>\"\"))","v":0},{"$f":"SUMPRODUCT((Teams1=T48)*(Teams1_Score<Teams2_Score))+SUMPRODUCT((Teams2=T48)*(Teams2_Score<Teams1_Score))","v":3},{"$f":"SUMPRODUCT((Teams1=T48)*(Teams1_Score))+SUMPRODUCT((Teams2=T48)*(Teams2_Score))","v":2},{"$f":"SUMPRODUCT((Teams1=T48)*(Teams2_Score))+SUMPRODUCT((Teams2=T48)*(Teams1_Score))","v":11},-9,0]
[null,{"$f":"VLOOKUP($D49,TABLEAU_MATCHS[#All],2,FALSE)","v":"2018-06-27"},{"$f":"VLOOKUP($D49,TABLEAU_MATCHS[#All],3,FALSE)","v":"21:00:00"},42,{"$f":"\"Groupe \"&VLOOKUP($I49,TABLEAU_TEAMS[[#All],[TEAM]:[GROUP_INITIAL_RANK]],2,FALSE)","v":"Groupe E"},null,null,null,{"$f":"VLOOKUP($D49,TABLEAU_MATCHS[#All],4,FALSE)","v":"Suisse"},2,null,{"$f":"VLOOKUP($D49,TABLEAU_MATCHS[#All],5,FALSE)","v":"Costa Rica"},2]
[null,{"$f":"VLOOKUP($D50,TABLEAU_MATCHS[#All],2,FALSE)","v":"2018-06-27"},{"$f":"VLOOKUP($D50,TABLEAU_MATCHS[#All],3,FALSE)","v":"19:00:00"},43,{"$f":"\"Groupe \"&VLOOKUP($I50,TABLEAU_TEAMS[[#All],[TEAM]:[GROUP_INITIAL_RANK]],2,FALSE)","v":"Groupe F"},null,null,null,{"$f":"VLOOKUP($D50,TABLEAU_MATCHS[#All],4,FALSE)","v":"Mexique"},0,null,{"$f":"VLOOKUP($D50,TABLEAU_MATCHS[#All],5,FALSE)","v":"Suède"},3,null,null,null,null,null,"Rg","Groupe H","MJ","G","N","P","BP","BC","+/-","Pts"]
[null,{"$f":"VLOOKUP($D51,TABLEAU_MATCHS[#All],2,FALSE)","v":"2018-06-27"},{"$f":"VLOOKUP($D51,TABLEAU_MATCHS[#All],3,FALSE)","v":"17:00:00"},44,{"$f":"\"Groupe \"&VLOOKUP($I51,TABLEAU_TEAMS[[#All],[TEAM]:[GROUP_INITIAL_RANK]],2,FALSE)","v":"Groupe F"},null,null,null,{"$f":"VLOOKUP($D51,TABLEAU_MATCHS[#All],4,FALSE)","v":"République de Corée"},2,null,{"$f":"VLOOKUP($D51,TABLEAU_MATCHS[#All],5,FALSE)","v":"Allemagne"},0,null,null,null,{"$f":"INDEX($Q102:$Q105,MATCH(SMALL(COUNTIF($Q102:$Q105,\">=\"&$Q102:$Q105),ROW(INDIRECT(\"1:\"&ROWS($Q102:$Q105)))),COUNTIF($Q102:$Q105,\">=\"&$Q102:$Q105),0))","v":"06350Colombie"},{"$f":"INDEX($R102:$R105,MATCH(SMALL(COUNTIF($Q102:$Q105,\">=\"&$Q102:$Q105),ROW(INDIRECT(\"1:\"&ROWS($Q102:$Q105)))),COUNTIF($Q102:$Q105,\">=\"&$Q102:$Q105),0))","v":6350},{"$f":"INDEX($S102:$S105,MATCH(SMALL(COUNTIF($Q102:$Q105,\">=\"&$Q102:$Q105),ROW(INDIRECT(\"1:\"&ROWS($Q102:$Q105)))),COUNTIF($Q102:$Q105,\">=\"&$Q102:$Q105),0))","v":1},{"$f":"INDEX($T102:$T105,MATCH(SMALL(COUNTIF($Q102:$Q105,\">=\"&$Q102:$Q105),ROW(INDIRECT(\"1:\"&ROWS($Q102:$Q105)))),COUNTIF($Q102:$Q105,\">=\"&$Q102:$Q105),0))","v":"Colombie"},{"$f":"SUMPRODUCT((Teams1=T51)*(Teams1_Score<>\"\"))+SUMPRODUCT((Teams2=T51)*(Teams2_Score<>\"\"))","v":3},{"$f":"SUMPRODUCT((Teams1=T51)*(Teams1_Score>Teams2_Score))+SUMPRODUCT((Teams2=T51)*(Teams2_Score>Teams1_Score))","v":2},{"$f":"SUMPRODUCT((Teams1=T51)*(Teams1_Score=Teams2_Score)*(Teams1_Score<>\"\"))+SUMPRODUCT((Teams2=T51)*(Teams2_Score=Teams1_Score)*(Teams2_Score<>\"\"))","v":0},{"$f":"SUMPRODUCT((Teams1=T51)*(Teams1_Score<Teams2_Score))+SUMPRODUCT((Teams2=T51)*(Teams2_Score<Teams1_Score))","v":1},{"$f":"SUMPRODUCT((Teams1=T51)*(Teams1_Score))+SUMPRODUCT((Teams2=T51)*(Teams2_Score))","v":5},{"$f":"SUMPRODUCT((Teams1=T51)*(Teams2_Score))+SUMPRODUCT((Teams2=T51)*(Teams1_Score))","v":2},{"$f":"Y51-Z51","v":3},{"$f":"3*V51+W51","v":6}]
[null,{"$f":"VLOOKUP($D52,TABLEAU_MATCHS[#All],2,FALSE)","v":"2018-06-28"},{"$f":"VLOOKUP($D52,TABLEAU_MATCHS[#All],3,FALSE)","v":"21:00:00"},45,{"$f":"\"Groupe \"&VLOOKUP($I52,TABLEAU_TEAMS[[#All],[TEAM]:[GROUP_INITIAL_RANK]],2,FALSE)","v":"Groupe G"},null,null,null,{"$f":"VLOOKUP($D52,TABLEAU_MATCHS[#All],4,FALSE)","v":"Panama"},1,null,{"$f":"VLOOKUP($D52,TABLEAU_MATCHS[#All],5,FALSE)","v":"Tunisie"},2,null,null,null,"04040Sénégal",4040,2,"Sénégal",{"$f":"SUMPRODUCT((Teams1=T52)*(Teams1_Score<>\"\"))+SUMPRODUCT((Teams2=T52)*(Teams2_Score<>\"\"))","v":3},{"$f":"SUMPRODUCT((Teams1=T52)*(Teams1_Score>Teams2_Score))+SUMPRODUCT((Teams2=T52)*(Teams2_Score>Teams1_Score))","v":1},{"$f":"SUMPRODUCT((Teams1=T52)*(Teams1_Score=Teams2_Score)*(Teams1_Score<>\"\"))+SUMPRODUCT((Teams2=T52)*(Teams2_Score=Teams1_Score)*(Teams2_Score<>\"\"))","v":1},{"$f":"SUMPRODUCT((Teams1=T52)*(Teams1_Score<Teams2_Score))+SUMPRODUCT((Teams2=T52)*(Teams2_Score<Teams1_Score))","v":1},{"$f":"SUMPRODUCT((Teams1=T52)*(Teams1_Score))+SUMPRODUCT((Teams2=T52)*(Teams2_Score))","v":4},{"$f":"SUMPRODUCT((Teams1=T52)*(Teams2_Score))+SUMPRODUCT((Teams2=T52)*(Teams1_Score))","v":4},0,4]
[null,{"$f":"VLOOKUP($D53,TABLEAU_MATCHS[#All],2,FALSE)","v":"2018-06-28"},{"$f":"VLOOKUP($D53,TABLEAU_MATCHS[#All],3,FALSE)","v":"20:00:00"},46,{"$f":"\"Groupe \"&VLOOKUP($I53,TABLEAU_TEAMS[[#All],[TEAM]:[GROUP_INITIAL_RANK]],2,FALSE)","v":"Groupe G"},null,null,null,{"$f":"VLOOKUP($D53,TABLEAU_MATCHS[#All],4,FALSE)","v":"Angleterre"},0,null,{"$f":"VLOOKUP($D53,TABLEAU_MATCHS[#All],5,FALSE)","v":"Belgique"},1,null,null,null,"04040Japon",4040,2,"Japon",{"$f":"SUMPRODUCT((Teams1=T53)*(Teams1_Score<>\"\"))+SUMPRODUCT((Teams2=T53)*(Teams2_Score<>\"\"))","v":3},{"$f":"SUMPRODUCT((Teams1=T53)*(Teams1_Score>Teams2_Score))+SUMPRODUCT((Teams2=T53)*(Teams2_Score>Teams1_Score))","v":1},{"$f":"SUMPRODUCT((Teams1=T53)*(Teams1_Score=Teams2_Score)*(Teams1_Score<>\"\"))+SUMPRODUCT((Teams2=T53)*(Teams2_Score=Teams1_Score)*(Teams2_Score<>\"\"))","v":1},{"$f":"SUMPRODUCT((Teams1=T53)*(Teams1_Score<Teams2_Score))+SUMPRODUCT((Teams2=T53)*(Teams2_Score<Teams1_Score))","v":1},{"$f":"SUMPRODUCT((Teams1=T53)*(Teams1_Score))+SUMPRODUCT((Teams2=T53)*(Teams2_Score))","v":4},{"$f":"SUMPRODUCT((Teams1=T53)*(Teams2_Score))+SUMPRODUCT((Teams2=T53)*(Teams1_Score))","v":4},0,4]
[null,{"$f":"VLOOKUP($D54,TABLEAU_MATCHS[#All],2,FALSE)","v":"2018-06-28"},{"$f":"VLOOKUP($D54,TABLEAU_MATCHS[#All],3,FALSE)","v":"17:00:00"},47,{"$f":"\"Groupe \"&VLOOKUP($I54,TABLEAU_TEAMS[[#All],[TEAM]:[GROUP_INITIAL_RANK]],2,FALSE)","v":"Groupe H"},null,null,null,{"$f":"VLOOKUP($D54,TABLEAU_MATCHS[#All],4,FALSE)","v":"Japon"},0,null,{"$f":"VLOOKUP($D54,TABLEAU_MATCHS[#All],5,FALSE)","v":"Pologne"},1,null,null,null,"02720Pologne",2720,4,"Pologne",{"$f":"SUMPRODUCT((Teams1=T54)*(Teams1_Score<>\"\"))+SUMPRODUCT((Teams2=T54)*(Teams2_Score<>\"\"))","v":3},{"$f":"SUMPRODUCT((Teams1=T54)*(Teams1_Score>Teams2_Score))+SUMPRODUCT((Teams2=T54)*(Teams2_Score>Teams1_Score))","v":1},{"$f":"SUMPRODUCT((Teams1=T54)*(Teams1_Score=Teams2_Score)*(Teams1_Score<>\"\"))+SUMPRODUCT((Teams2=T54)*(Teams2_Score=Teams1_Score)*(Teams2_Score<>\"\"))","v":0},{"$f":"SUMPRODUCT((Teams1=T54)*(Teams1_Score<Teams2_Score))+SUMPRODUCT((Teams2=T54)*(Teams2_Score<Teams1_Score))","v":2},{"$f":"SUMPRODUCT((Teams1=T54)*(Teams1_Score))+SUMPRODUCT((Teams2=T54)*(Teams2_Score))","v":2},{"$f":"SUMPRODUCT((Teams1=T54)*(Teams2_Score))+SUMPRODUCT((Teams2=T54)*(Teams1_Score))","v":5},-3,3]
[null,{"$f":"VLOOKUP($D55,TABLEAU_MATCHS[#All],2,FALSE)","v":"2018-06-28"},{"$f":"VLOOKUP($D55,TABLEAU_MATCHS[#All],3,FALSE)","v":"18:00:00"},48,{"$f":"\"Groupe \"&VLOOKUP($I55,TABLEAU_TEAMS[[#All],[TEAM]:[GROUP_INITIAL_RANK]],2,FALSE)","v":"Groupe H"},null,null,null,{"$f":"VLOOKUP($D55,TABLEAU_MATCHS[#All],4,FALSE)","v":"Sénégal"},0,null,{"$f":"VLOOKUP($D55,TABLEAU_MATCHS[#All],5,FALSE)","v":"Colombie"},1]
[]
[]
[]
[null,"Tirage au sort A1",null,null,null,null,null,null,null,null,null,null,null,null,null,null,null,null,"Rg","Groupe A","MJ","G","N","P","BP","BC","+/-","Pts"]
[null,{"$f":"IF(ROWS($1:1)<=COUNTIF($S$9:$S$12,1),INDEX($T$9:$T$12,SMALL(IF($S$9:$S$12=1,ROW(INDIRECT(\"1:\"&ROWS($S$9:$S$12)))),ROWS($1:1))),\"\")","v":"Uruguay"},null,null,null,null,null,null,null,null,null,null,null,null,null,"A_1",{"$f":"TEXT(R60,\"00000\")&T60","v":"06480Russie"},{"$f":"AB60*1000+AA60*100+Y60*10","v":6480},{"$f":"RANK(R60,$R60:$R63,0)","v":2},{"$f":"VLOOKUP(P60,TABLEAU_TEAMS[#All],2,FALSE)","v":"Russie"},{"$f":"SUMPRODUCT((Teams1=T60)*(Teams1_Score<>\"\"))+SUMPRODUCT((Teams2=T60)*(Teams2_Score<>\"\"))","v":3},{"$f":"SUMPRODUCT((Teams1=T60)*(Teams1_Score>Teams2_Score))+SUMPRODUCT((Teams2=T60)*(Teams2_Score>Teams1_Score))","v":2},{"$f":"SUMPRODUCT((Teams1=T60)*(Teams1_Score=Teams2_Score)*(Teams1_Score<>\"\"))+SUMPRODUCT((Teams2=T60)*(Teams2_Score=Teams1_Score)*(Teams2_Score<>\"\"))","v":0},{"$f":"SUMPRODUCT((Teams1=T60)*(Teams1_Score<Teams2_Score))+SUMPRODUCT((Teams2=T60)*(Teams2_Score<Teams1_Score))","v":1},{"$f":"SUMPRODUCT((Teams1=T60)*(Teams1_Score))+SUMPRODUCT((Teams2=T60)*(Teams2_Score))","v":8},{"$f":"SUMPRODUCT((Teams1=T60)*(Teams2_Score))+SUMPRODUCT((Teams2=T60)*(Teams1_Score))","v":4},{"$f":"Y60-Z60","v":4},{"$f":"3*V60+W60","v":6}]
[null,{"$f":"IF(ROWS($1:2)<=COUNTIF($S$9:$S$12,1),INDEX($T$9:$T$12,SMALL(IF($S$9:$S$12=1,ROW(INDIRECT(\"1:\"&ROWS($S$9:$S$12)))),ROWS($1:2))),\"\")","v":""},null,null,null,null,null,null,null,null,null,null,null,null,null,"A_2",{"$f":"TEXT(R61,\"00000\")&T61","v":"02520Arabie Saoudite"},{"$f":"AB61*1000+AA61*100+Y61*10","v":2520},{"$f":"RANK(R61,$R60:$R63,0)","v":3},{"$f":"VLOOKUP(P61,TABLEAU_TEAMS[#All],2,FALSE)","v":"Arabie Saoudite"},{"$f":"SUMPRODUCT((Teams1=T61)*(Teams1_Score<>\"\"))+SUMPRODUCT((Teams2=T61)*(Teams2_Score<>\"\"))","v":3},{"$f":"SUMPRODUCT((Teams1=T61)*(Teams1_Score>Teams2_Score))+SUMPRODUCT((Teams2=T61)*(Teams2_Score>Teams1_Score))","v":1},{"$f":"SUMPRODUCT((Teams1=T61)*(Teams1_Score=Teams2_Score)*(Teams1_Score<>\"\"))+SUMPRODUCT((Teams2=T61)*(Teams2_Score=Teams1_Score)*(Teams2_Score<>\"\"))","v":0},{"$f":"SUMPRODUCT((Teams1=T61)*(Teams1_Score<Teams2_Score))+SUMPRODUCT((Teams2=T61)*(Teams2_Score<Teams1_Score))","v":2},{"$f":"SUMPRODUCT((Teams1=T61)*(Teams1_Score))+SUMPRODUCT((Teams2=T61)*(Teams2_Score))","v":2},{"$f":"SUMPRODUCT((Teams1=T61)*(Teams2_Score))+SUMPRODUCT((Teams2=T61)*(Teams1_Score))","v":7},{"$f":"Y61-Z61","v":-5},{"$f":"3*V61+W61","v":3}]
[null,{"$f":"IF(ROWS($1:3)<=COUNTIF($S$9:$S$12,1),INDEX($T$9:$T$12,SMALL(IF($S$9:$S$12=1,ROW(INDIRECT(\"1:\"&ROWS($S$9:$S$12)))),ROWS($1:3))),\"\")","v":""},null,null,null,null,null,null,null,null,null,null,null,null,null,"A_3",{"$f":"TEXT(R62,\"00000\")&T62","v":"-00380Egypte"},{"$f":"AB62*1000+AA62*100+Y62*10","v":-380},{"$f":"RANK(R62,$R60:$R63,0)","v":4},{"$f":"VLOOKUP(P62,TABLEAU_TEAMS[#All],2,FALSE)","v":"Egypte"},{"$f":"SUMPRODUCT((Teams1=T62)*(Teams1_Score<>\"\"))+SUMPRODUCT((Teams2=T62)*(Teams2_Score<>\"\"))","v":3},{"$f":"SUMPRODUCT((Teams1=T62)*(Teams1_Score>Teams2_Score))+SUMPRODUCT((Teams2=T62)*(Teams2_Score>Teams1_Score))","v":0},{"$f":"SUMPRODUCT((Teams1=T62)*(Teams1_Score=Teams2_Score)*(Teams1_Score<>\"\"))+SUMPRODUCT((Teams2=T62)*(Teams2_Score=Teams1_Score)*(Teams2_Score<>\"\"))","v":0},{"$f":"SUMPRODUCT((Teams1=T62)*(Teams1_Score<Teams2_Score))+SUMPRODUCT((Teams2=T62)*(Teams2_Score<Teams1_Score))","v":3},{"$f":"SUMPRODUCT((Teams1=T62)*(Teams1_Score))+SUMPRODUCT((Teams2=T62)*(Teams2_Score))","v":2},{"$f":"SUMPRODUCT((Teams1=T62)*(Teams2_Score))+SUMPRODUCT((Teams2=T62)*(Teams1_Score))","v":6},-4,0]
[null,{"$f":"IF(ROWS($1:4)<=COUNTIF($S$9:$S$12,1),INDEX($T$9:$T$12,SMALL(IF($S$9:$S$12=1,ROW(INDIRECT(\"1:\"&ROWS($S$9:$S$12)))),ROWS($1:4))),\"\")","v":""},null,null,null,null,null,null,null,null,null,null,null,null,null,"A_4",{"$f":"TEXT(R63,\"00000\")&T63","v":"09550Uruguay"},{"$f":"AB63*1000+AA63*100+Y63*10","v":9550},{"$f":"RANK(R63,$R60:$R63,0)","v":1},{"$f":"VLOOKUP(P63,TABLEAU_TEAMS[#All],2,FALSE)","v":"Uruguay"},{"$f":"SUMPRODUCT((Teams1=T63)*(Teams1_Score<>\"\"))+SUMPRODUCT((Teams2=T63)*(Teams2_Score<>\"\"))","v":3},{"$f":"SUMPRODUCT((Teams1=T63)*(Teams1_Score>Teams2_Score))+SUMPRODUCT((Teams2=T63)*(Teams2_Score>Teams1_Score))","v":3},{"$f":"SUMPRODUCT((Teams1=T63)*(Teams1_Score=Teams2_Score)*(Teams1_Score<>\"\"))+SUMPRODUCT((Teams2=T63)*(Teams2_Score=Teams1_Score)*(Teams2_Score<>\"\"))","v":0},{"$f":"SUMPRODUCT((Teams1=T63)*(Teams1_Score<Teams2_Score))+SUMPRODUCT((Teams2=T63)*(Teams2_Score<Teams1_Score))","v":0},{"$f":"SUMPRODUCT((Teams1=T63)*(Teams1_Score))+SUMPRODUCT((Teams2=T63)*(Teams2_Score))","v":5},{"$f":"SUMPRODUCT((Teams1=T63)*(Teams2_Score))+SUMPRODUCT((Teams2=T63)*(Teams1_Score))","v":0},5,9]
[null,"Tirage au sort A2"]
[null,{"$f":"IF(COUNTIF($S$9:$S$12,1)>1,IF(ROWS($1:1)<=COUNTIF($S$9:$S$12,1),INDEX($T$9:$T$12,SMALL(IF($S$9:$S$12=1,ROW(INDIRECT(\"1:\"&ROWS($S$9:$S$12)))),ROWS($1:1))),\"\"),IF(COUNTIF($S$9:$S$12,2)>1,IF(ROWS($1:1)<=COUNTIF($S$9:$S$12,2),INDEX($T$9:$T$12,SMALL(IF($S$9:$S$12=2,ROW(INDIRECT(\"1:\"&ROWS($S$9:$S$12)))),ROWS($1:1))),\"\")))","v":false},null,null,null,null,null,null,null,null,null,null,null,null,null,null,null,null,"Rg","Groupe B","MJ","G","N","P","BP","BC","Pts","Pts"]
[null,{"$f":"IF(COUNTIF($S$9:$S$12,1)>1,IF(ROWS($1:2)<=COUNTIF($S$9:$S$12,1),INDEX($T$9:$T$12,SMALL(IF($S$9:$S$12=1,ROW(INDIRECT(\"1:\"&ROWS($S$9:$S$12)))),ROWS($1:2))),\"\"),IF(COUNTIF($S$9:$S$12,2)>1,IF(ROWS($1:2)<=COUNTIF($S$9:$S$12,2),INDEX($T$9:$T$12,SMALL(IF($S$9:$S$12=2,ROW(INDIRECT(\"1:\"&ROWS($S$9:$S$12)))),ROWS($1:2))),\"\")))","v":false},null,null,null,null,null,null,null,null,null,null,null,null,null,"B_1",{"$f":"TEXT(R66,\"00000\")&T66","v":"00820Maroc"},{"$f":"AB66*1000+AA66*100+Y66*10","v":820},{"$f":"RANK(R66,$R66:$R69,0)","v":4},{"$f":"VLOOKUP(P66,TABLEAU_TEAMS[#All],2,FALSE)","v":"Maroc"},{"$f":"SUMPRODUCT((Teams1=T66)*(Teams1_Score<>\"\"))+SUMPRODUCT((Teams2=T66)*(Teams2_Score<>\"\"))","v":3},{"$f":"SUMPRODUCT((Teams1=T66)*(Teams1_Score>Teams2_Score))+SUMPRODUCT((Teams2=T66)*(Teams2_Score>Teams1_Score))","v":0},{"$f":"SUMPRODUCT((Teams1=T66)*(Teams1_Score=Teams2_Score)*(Teams1_Score<>\"\"))+SUMPRODUCT((Teams2=T66)*(Teams2_Score=Teams1_Score)*(Teams2_Score<>\"\"))","v":1},{"$f":"SUMPRODUCT((Teams1=T66)*(Teams1_Score<Teams2_Score))+SUMPRODUCT((Teams2=T66)*(Teams2_Score<Teams1_Score))","v":2},{"$f":"SUMPRODUCT((Teams1=T66)*(Teams1_Score))+SUMPRODUCT((Teams2=T66)*(Teams2_Score))","v":2},{"$f":"SUMPRODUCT((Teams1=T66)*(Teams2_Score))+SUMPRODUCT((Teams2=T66)*(Teams1_Score))","v":4},{"$f":"Y66-Z66","v":-2},{"$f":"3*V66+W66","v":1}]
[null,{"$f":"IF(COUNTIF($S$9:$S$12,1)>1,IF(ROWS($1:3)<=COUNTIF($S$9:$S$12,1),INDEX($T$9:$T$12,SMALL(IF($S$9:$S$12=1,ROW(INDIRECT(\"1:\"&ROWS($S$9:$S$12)))),ROWS($1:3))),\"\"),IF(COUNTIF($S$9:$S$12,2)>1,IF(ROWS($1:3)<=COUNTIF($S$9:$S$12,2),INDEX($T$9:$T$12,SMALL(IF($S$9:$S$12=2,ROW(INDIRECT(\"1:\"&ROWS($S$9:$S$12)))),ROWS($1:3))),\"\")))","v":false},null,null,null,null,null,null,null,null,null,null,null,null,null,"B_2",{"$f":"TEXT(R67,\"00000\")&T67","v":"04020RI Iran"},{"$f":"AB67*1000+AA67*100+Y67*10","v":4020},{"$f":"RANK(R67,$R66:$R69,0)","v":3},{"$f":"VLOOKUP(P67,TABLEAU_TEAMS[#All],2,FALSE)","v":"RI Iran"},{"$f":"SUMPRODUCT((Teams1=T67)*(Teams1_Score<>\"\"))+SUMPRODUCT((Teams2=T67)*(Teams2_Score<>\"\"))","v":3},{"$f":"SUMPRODUCT((Teams1=T67)*(Teams1_Score>Teams2_Score))+SUMPRODUCT((Teams2=T67)*(Teams2_Score>Teams1_Score))","v":1},{"$f":"SUMPRODUCT((Teams1=T67)*(Teams1_Score=Teams2_Score)*(Teams1_Score<>\"\"))+SUMPRODUCT((Teams2=T67)*(Teams2_Score=Teams1_Score)*(Teams2_Score<>\"\"))","v":1},{"$f":"SUMPRODUCT((Teams1=T67)*(Teams1_Score<Teams2_Score))+SUMPRODUCT((Teams2=T67)*(Teams2_Score<Teams1_Score))","v":1},{"$f":"SUMPRODUCT((Teams1=T67)*(Teams1_Score))+SUMPRODUCT((Teams2=T67)*(Teams2_Score))","v":2},{"$f":"SUMPRODUCT((Teams1=T67)*(Teams2_Score))+SUMPRODUCT((Teams2=T67)*(Teams1_Score))","v":2},0,4]
[null,{"$f":"IF(COUNTIF($S$9:$S$12,1)>1,IF(ROWS($1:4)<=COUNTIF($S$9:$S$12,1),INDEX($T$9:$T$12,SMALL(IF($S$9:$S$12=1,ROW(INDIRECT(\"1:\"&ROWS($S$9:$S$12)))),ROWS($1:4))),\"\"),IF(COUNTIF($S$9:$S$12,2)>1,IF(ROWS($1:4)<=COUNTIF($S$9:$S$12,2),INDEX($T$9:$T$12,SMALL(IF($S$9:$S$12=2,ROW(INDIRECT(\"1:\"&ROWS($S$9:$S$12)))),ROWS($1:4))),\"\")))","v":false},null,null,null,null,null,null,null,null,null,null,null,null,null,"B_3",{"$f":"TEXT(R68,\"00000\")&T68","v":"05150Portugal"},{"$f":"AB68*1000+AA68*100+Y68*10","v":5150},{"$f":"RANK(R68,$R66:$R69,0)","v":2},{"$f":"VLOOKUP(P68,TABLEAU_TEAMS[#All],2,FALSE)","v":"Portugal"},{"$f":"SUMPRODUCT((Teams1=T68)*(Teams1_Score<>\"\"))+SUMPRODUCT((Teams2=T68)*(Teams2_Score<>\"\"))","v":3},{"$f":"SUMPRODUCT((Teams1=T68)*(Teams1_Score>Teams2_Score))+SUMPRODUCT((Teams2=T68)*(Teams2_Score>Teams1_Score))","v":1},{"$f":"SUMPRODUCT((Teams1=T68)*(Teams1_Score=Teams2_Score)*(Teams1_Score<>\"\"))+SUMPRODUCT((Teams2=T68)*(Teams2_Score=Teams1_Score)*(Teams2_Score<>\"\"))","v":2},{"$f":"SUMPRODUCT((Teams1=T68)*(Teams1_Score<Teams2_Score))+SUMPRODUCT((Teams2=T68)*(Teams2_Score<Teams1_Score))","v":0},{"$f":"SUMPRODUCT((Teams1=T68)*(Teams1_Score))+SUMPRODUCT((Teams2=T68)*(Teams2_Score))","v":5},{"$f":"SUMPRODUCT((Teams1=T68)*(Teams2_Score))+SUMPRODUCT((Teams2=T68)*(Teams1_Score))","v":4},1,5]
[null,"Tirage au sort B1",null,null,null,null,null,null,null,null,null,null,null,null,null,"B_4",{"$f":"TEXT(R69,\"00000\")&T69","v":"05160Espagne"},{"$f":"AB69*1000+AA69*100+Y69*10","v":5160},{"$f":"RANK(R69,$R66:$R69,0)","v":1},{"$f":"VLOOKUP(P69,TABLEAU_TEAMS[#All],2,FALSE)","v":"Espagne"},{"$f":"SUMPRODUCT((Teams1=T69)*(Teams1_Score<>\"\"))+SUMPRODUCT((Teams2=T69)*(Teams2_Score<>\"\"))","v":3},{"$f":"SUMPRODUCT((Teams1=T69)*(Teams1_Score>Teams2_Score))+SUMPRODUCT((Teams2=T69)*(Teams2_Score>Teams1_Score))","v":1},{"$f":"SUMPRODUCT((Teams1=T69)*(Teams1_Score=Teams2_Score)*(Teams1_Score<>\"\"))+SUMPRODUCT((Teams2=T69)*(Teams2_Score=Teams1_Score)*(Teams2_Score<>\"\"))","v":2},{"$f":"SUMPRODUCT((Teams1=T69)*(Teams1_Score<Teams2_Score))+SUMPRODUCT((Teams2=T69)*(Teams2_Score<Teams1_Score))","v":0},{"$f":"SUMPRODUCT((Teams1=T69)*(Teams1_Score))+SUMPRODUCT((Teams2=T69)*(Teams2_Score))","v":6},{"$f":"SUMPRODUCT((Teams1=T69)*(Teams2_Score))+SUMPRODUCT((Teams2=T69)*(Teams1_Score))","v":5},1,5]
[null,{"$f":"IF(ROWS($1:1)<=COUNTIF($S$15:$S$18,1),INDEX($T$15:$T$18,SMALL(IF($S$15:$S$18=1,ROW(INDIRECT(\"1:\"&ROWS($S$15:$S$18)))),ROWS($1:1))),\"\")","v":"Espagne"}]
[null,{"$f":"IF(ROWS($1:2)<=COUNTIF($S$15:$S$18,1),INDEX($T$15:$T$18,SMALL(IF($S$15:$S$18=1,ROW(INDIRECT(\"1:\"&ROWS($S$15:$S$18)))),ROWS($1:2))),\"\")","v":""},null,null,null,null,null,null,null,null,null,null,null,null,null,null,null,null,"Rg","Groupe C","MJ","G","N","P","BP","BC","Pts","Pts"]
[null,{"$f":"IF(ROWS($1:3)<=COUNTIF($S$15:$S$18,1),INDEX($T$15:$T$18,SMALL(IF($S$15:$S$18=1,ROW(INDIRECT(\"1:\"&ROWS($S$15:$S$18)))),ROWS($1:3))),\"\")","v":""},null,null,null,null,null,null,null,null,null,null,null,null,null,"C_1",{"$f":"TEXT(R72,\"00000\")&T72","v":"07230France"},{"$f":"AB72*1000+AA72*100+Y72*10","v":7230},{"$f":"RANK(R72,$R72:$R75,0)","v":1},{"$f":"VLOOKUP(P72,TABLEAU_TEAMS[#All],2,FALSE)","v":"France"},{"$f":"SUMPRODUCT((Teams1=T72)*(Teams1_Score<>\"\"))+SUMPRODUCT((Teams2=T72)*(Teams2_Score<>\"\"))","v":3},{"$f":"SUMPRODUCT((Teams1=T72)*(Teams1_Score>Teams2_Score))+SUMPRODUCT((Teams2=T72)*(Teams2_Score>Teams1_Score))","v":2},{"$f":"SUMPRODUCT((Teams1=T72)*(Teams1_Score=Teams2_Score)*(Teams1_Score<>\"\"))+SUMPRODUCT((Teams2=T72)*(Teams2_Score=Teams1_Score)*(Teams2_Score<>\"\"))","v":1},{"$f":"SUMPRODUCT((Teams1=T72)*(Teams1_Score<Teams2_Score))+SUMPRODUCT((Teams2=T72)*(Teams2_Score<Teams1_Score))","v":0},{"$f":"SUMPRODUCT((Teams1=T72)*(Teams1_Score))+SUMPRODUCT((Teams2=T72)*(Teams2_Score))","v":3},{"$f":"SUMPRODUCT((Teams1=T72)*(Teams2_Score))+SUMPRODUCT((Teams2=T72)*(Teams1_Score))","v":1},{"$f":"Y72-Z72","v":2},{"$f":"3*V72+W72","v":7}]
[null,{"$f":"IF(ROWS($1:4)<=COUNTIF($S$15:$S$18,1),INDEX($T$15:$T$18,SMALL(IF($S$15:$S$18=1,ROW(INDIRECT(\"1:\"&ROWS($S$15:$S$18)))),ROWS($1:4))),\"\")","v":""},null,null,null,null,null,null,null,null,null,null,null,null,null,"C_2",{"$f":"TEXT(R73,\"00000\")&T73","v":"00720Australie"},{"$f":"AB73*1000+AA73*100+Y73*10","v":720},{"$f":"RANK(R73,$R72:$R75,0)","v":4},{"$f":"VLOOKUP(P73,TABLEAU_TEAMS[#All],2,FALSE)","v":"Australie"},{"$f":"SUMPRODUCT((Teams1=T73)*(Teams1_Score<>\"\"))+SUMPRODUCT((Teams2=T73)*(Teams2_Score<>\"\"))","v":3},{"$f":"SUMPRODUCT((Teams1=T73)*(Teams1_Score>Teams2_Score))+SUMPRODUCT((Teams2=T73)*(Teams2_Score>Teams1_Score))","v":0},{"$f":"SUMPRODUCT((Teams1=T73)*(Teams1_Score=Teams2_Score)*(Teams1_Score<>\"\"))+SUMPRODUCT((Teams2=T73)*(Teams2_Score=Teams1_Score)*(Teams2_Score<>\"\"))","v":1},{"$f":"SUMPRODUCT((Teams1=T73)*(Teams1_Score<Teams2_Score))+SUMPRODUCT((Teams2=T73)*(Teams2_Score<Teams1_Score))","v":2},{"$f":"SUMPRODUCT((Teams1=T73)*(Teams1_Score))+SUMPRODUCT((Teams2=T73)*(Teams2_Score))","v":2},{"$f":"SUMPRODUCT((Teams1=T73)*(Teams2_Score))+SUMPRODUCT((Teams2=T73)*(Teams1_Score))","v":5},-3,1]
[null,"Tirage au sort B2",null,null,null,null,null,null,null,null,null,null,null,null,null,"C_3",{"$f":"TEXT(R74,\"00000\")&T74","v":"03020Pérou"},{"$f":"AB74*1000+AA74*100+Y74*10","v":3020},{"$f":"RANK(R74,$R72:$R75,0)","v":3},{"$f":"VLOOKUP(P74,TABLEAU_TEAMS[#All],2,FALSE)","v":"Pérou"},{"$f":"SUMPRODUCT((Teams1=T74)*(Teams1_Score<>\"\"))+SUMPRODUCT((Teams2=T74)*(Teams2_Score<>\"\"))","v":3},{"$f":"SUMPRODUCT((Teams1=T74)*(Teams1_Score>Teams2_Score))+SUMPRODUCT((Teams2=T74)*(Teams2_Score>Teams1_Score))","v":1},{"$f":"SUMPRODUCT((Teams1=T74)*(Teams1_Score=Teams2_Score)*(Teams1_Score<>\"\"))+SUMPRODUCT((Teams2=T74)*(Teams2_Score=Teams1_Score)*(Teams2_Score<>\"\"))","v":0},{"$f":"SUMPRODUCT((Teams1=T74)*(Teams1_Score<Teams2_Score))+SUMPRODUCT((Teams2=T74)*(Teams2_Score<Teams1_Score))","v":2},{"$f":"SUMPRODUCT((Teams1=T74)*(Teams1_Score))+SUMPRODUCT((Teams2=T74)*(Teams2_Score))","v":2},{"$f":"SUMPRODUCT((Teams1=T74)*(Teams2_Score))+SUMPRODUCT((Teams2=T74)*(Teams1_Score))","v":2},0,3]
[null,{"$f":"IF(COUNTIF($S$15:$S$18,1)>1,IF(ROWS($1:1)<=COUNTIF($S$15:$S$18,1),INDEX($T$15:$T$18,SMALL(IF($S$15:$S$18=1,ROW(INDIRECT(\"1:\"&ROWS($S$15:$S$18)))),ROWS($1:1))),\"\"),IF(COUNTIF($S$15:$S$18,2)>1,IF(ROWS($1:1)<=COUNTIF($S$15:$S$18,2),INDEX($T$15:$T$18,SMALL(IF($S$15:$S$18=2,ROW(INDIRECT(\"1:\"&ROWS($S$15:$S$18)))),ROWS($1:1))),\"\")))","v":false},null,null,null,null,null,null,null,null,null,null,null,null,null,"C_4",{"$f":"TEXT(R75,\"00000\")&T75","v":"05120Danemark"},{"$f":"AB75*1000+AA75*100+Y75*10","v":5120},{"$f":"RANK(R75,$R72:$R75,0)","v":2},{"$f":"VLOOKUP(P75,TABLEAU_TEAMS[#All],2,FALSE)","v":"Danemark"},{"$f":"SUMPRODUCT((Teams1=T75)*(Teams1_Score<>\"\"))+SUMPRODUCT((Teams2=T75)*(Teams2_Score<>\"\"))","v":3},{"$f":"SUMPRODUCT((Teams1=T75)*(Teams1_Score>Teams2_Score))+SUMPRODUCT((Teams2=T75)*(Teams2_Score>Teams1_Score))","v":1},{"$f":"SUMPRODUCT((Teams1=T75)*(Teams1_Score=Teams2_Score)*(Teams1_Score<>\"\"))+SUMPRODUCT((Teams2=T75)*(Teams2_Score=Teams1_Score)*(Teams2_Score<>\"\"))","v":2},{"$f":"SUMPRODUCT((Teams1=T75)*(Teams1_Score<Teams2_Score))+SUMPRODUCT((Teams2=T75)*(Teams2_Score<Teams1_Score))","v":0},{"$f":"SUMPRODUCT((Teams1=T75)*(Teams1_Score))+SUMPRODUCT((Teams2=T75)*(Teams2_Score))","v":2},{"$f":"SUMPRODUCT((Teams1=T75)*(Teams2_Score))+SUMPRODUCT((Teams2=T75)*(Teams1_Score))","v":1},1,5]
[null,{"$f":"IF(COUNTIF($S$15:$S$18,1)>1,IF(ROWS($1:2)<=COUNTIF($S$15:$S$18,1),INDEX($T$15:$T$18,SMALL(IF($S$15:$S$18=1,ROW(INDIRECT(\"1:\"&ROWS($S$15:$S$18)))),ROWS($1:2))),\"\"),IF(COUNTIF($S$15:$S$18,2)>1,IF(ROWS($1:2)<=COUNTIF($S$15:$S$18,2),INDEX($T$15:$T$18,SMALL(IF($S$15:$S$18=2,ROW(INDIRECT(\"1:\"&ROWS($S$15:$S$18)))),ROWS($1:2))),\"\")))","v":false}]
[null,{"$f":"IF(COUNTIF($S$15:$S$18,1)>1,IF(ROWS($1:3)<=COUNTIF($S$15:$S$18,1),INDEX($T$15:$T$18,SMALL(IF($S$15:$S$18=1,ROW(INDIRECT(\"1:\"&ROWS($S$15:$S$18)))),ROWS($1:3))),\"\"),IF(COUNTIF($S$15:$S$18,2)>1,IF(ROWS($1:3)<=COUNTIF($S$15:$S$18,2),INDEX($T$15:$T$18,SMALL(IF($S$15:$S$18=2,ROW(INDIRECT(\"1:\"&ROWS($S$15:$S$18)))),ROWS($1:3))),\"\")))","v":false},null,null,null,null,null,null,null,null,null,null,null,null,null,null,null,null,"Rg","Groupe D","MJ","G","N","P","BP","BC","Pts","Pts"]
[null,{"$f":"IF(COUNTIF($S$15:$S$18,1)>1,IF(ROWS($1:4)<=COUNTIF($S$15:$S$18,1),INDEX($T$15:$T$18,SMALL(IF($S$15:$S$18=1,ROW(INDIRECT(\"1:\"&ROWS($S$15:$S$18)))),ROWS($1:4))),\"\"),IF(COUNTIF($S$15:$S$18,2)>1,IF(ROWS($1:4)<=COUNTIF($S$15:$S$18,2),INDEX($T$15:$T$18,SMALL(IF($S$15:$S$18=2,ROW(INDIRECT(\"1:\"&ROWS($S$15:$S$18)))),ROWS($1:4))),\"\")))","v":false},null,null,null,null,null,null,null,null,null,null,null,null,null,"D_1",{"$f":"TEXT(R78,\"00000\")&T78","v":"03830Argentine"},{"$f":"AB78*1000+AA78*100+Y78*10","v":3830},{"$f":"RANK(R78,$R78:$R81,0)","v":2},{"$f":"VLOOKUP(P78,TABLEAU_TEAMS[#All],2,FALSE)","v":"Argentine"},{"$f":"SUMPRODUCT((Teams1=T78)*(Teams1_Score<>\"\"))+SUMPRODUCT((Teams2=T78)*(Teams2_Score<>\"\"))","v":3},{"$f":"SUMPRODUCT((Teams1=T78)*(Teams1_Score>Teams2_Score))+SUMPRODUCT((Teams2=T78)*(Teams2_Score>Teams1_Score))","v":1},{"$f":"SUMPRODUCT((Teams1=T78)*(Teams1_Score=Teams2_Score)*(Teams1_Score<>\"\"))+SUMPRODUCT((Teams2=T78)*(Teams2_Score=Teams1_Score)*(Teams2_Score<>\"\"))","v":1},{"$f":"SUMPRODUCT((Teams1=T78)*(Teams1_Score<Teams2_Score))+SUMPRODUCT((Teams2=T78)*(Teams2_Score<Teams1_Score))","v":1},{"$f":"SUMPRODUCT((Teams1=T78)*(Teams1_Score))+SUMPRODUCT((Teams2=T78)*(Teams2_Score))","v":3},{"$f":"SUMPRODUCT((Teams1=T78)*(Teams2_Score))+SUMPRODUCT((Teams2=T78)*(Teams1_Score))","v":5},{"$f":"Y78-Z78","v":-2},{"$f":"3*V78+W78","v":4}]
[null,"Tirage au sort C1",null,null,null,null,null,null,null,null,null,null,null,null,null,"D_2",{"$f":"TEXT(R79,\"00000\")&T79","v":"00720Islande"},{"$f":"AB79*1000+AA79*100+Y79*10","v":720},{"$f":"RANK(R79,$R78:$R81,0)","v":4},{"$f":"VLOOKUP(P79,TABLEAU_TEAMS[#All],2,FALSE)","v":"Islande"},{"$f":"SUMPRODUCT((Teams1=T79)*(Teams1_Score<>\"\"))+SUMPRODUCT((Teams2=T79)*(Teams2_Score<>\"\"))","v":3},{"$f":"SUMPRODUCT((Teams1=T79)*(Teams1_Score>Teams2_Score))+SUMPRODUCT((Teams2=T79)*(Teams2_Score>Teams1_Score))","v":0},{"$f":"SUMPRODUCT((Teams1=T79)*(Teams1_Score=Teams2_Score)*(Teams1_Score<>\"\"))+SUMPRODUCT((Teams2=T79)*(Teams2_Score=Teams1_Score)*(Teams2_Score<>\"\"))","v":1},{"$f":"SUMPRODUCT((Teams1=T79)*(Teams1_Score<Teams2_Score))+SUMPRODUCT((Teams2=T79)*(Teams2_Score<Teams1_Score))","v":2},{"$f":"SUMPRODUCT((Teams1=T79)*(Teams1_Score))+SUMPRODUCT((Teams2=T79)*(Teams2_Score))","v":2},{"$f":"SUMPRODUCT((Teams1=T79)*(Teams2_Score))+SUMPRODUCT((Teams2=T79)*(Teams1_Score))","v":5},-3,1]
[null,{"$f":"IF(ROWS($1:1)<=COUNTIF($S$21:$S$24,1),INDEX($T$21:$T$24,SMALL(IF($S$21:$S$24=1,ROW(INDIRECT(\"1:\"&ROWS($S$21:$S$24)))),ROWS($1:1))),\"\")","v":"France"},null,null,null,null,null,null,null,null,null,null,null,null,null,"D_3",{"$f":"TEXT(R80,\"00000\")&T80","v":"09670Croatie"},{"$f":"AB80*1000+AA80*100+Y80*10","v":9670},{"$f":"RANK(R80,$R78:$R81,0)","v":1},{"$f":"VLOOKUP(P80,TABLEAU_TEAMS[#All],2,FALSE)","v":"Croatie"},{"$f":"SUMPRODUCT((Teams1=T80)*(Teams1_Score<>\"\"))+SUMPRODUCT((Teams2=T80)*(Teams2_Score<>\"\"))","v":3},{"$f":"SUMPRODUCT((Teams1=T80)*(Teams1_Score>Teams2_Score))+SUMPRODUCT((Teams2=T80)*(Teams2_Score>Teams1_Score))","v":3},{"$f":"SUMPRODUCT((Teams1=T80)*(Teams1_Score=Teams2_Score)*(Teams1_Score<>\"\"))+SUMPRODUCT((Teams2=T80)*(Teams2_Score=Teams1_Score)*(Teams2_Score<>\"\"))","v":0},{"$f":"SUMPRODUCT((Teams1=T80)*(Teams1_Score<Teams2_Score))+SUMPRODUCT((Teams2=T80)*(Teams2_Score<Teams1_Score))","v":0},{"$f":"SUMPRODUCT((Teams1=T80)*(Teams1_Score))+SUMPRODUCT((Teams2=T80)*(Teams2_Score))","v":7},{"$f":"SUMPRODUCT((Teams1=T80)*(Teams2_Score))+SUMPRODUCT((Teams2=T80)*(Teams1_Score))","v":1},6,9]
[null,{"$f":"IF(ROWS($1:2)<=COUNTIF($S$21:$S$24,1),INDEX($T$21:$T$24,SMALL(IF($S$21:$S$24=1,ROW(INDIRECT(\"1:\"&ROWS($S$21:$S$24)))),ROWS($1:2))),\"\")","v":""},null,null,null,null,null,null,null,null,null,null,null,null,null,"D_4",{"$f":"TEXT(R81,\"00000\")&T81","v":"02930Nigeria"},{"$f":"AB81*1000+AA81*100+Y81*10","v":2930},{"$f":"RANK(R81,$R78:$R81,0)","v":3},{"$f":"VLOOKUP(P81,TABLEAU_TEAMS[#All],2,FALSE)","v":"Nigeria"},{"$f":"SUMPRODUCT((Teams1=T81)*(Teams1_Score<>\"\"))+SUMPRODUCT((Teams2=T81)*(Teams2_Score<>\"\"))","v":3},{"$f":"SUMPRODUCT((Teams1=T81)*(Teams1_Score>Teams2_Score))+SUMPRODUCT((Teams2=T81)*(Teams2_Score>Teams1_Score))","v":1},{"$f":"SUMPRODUCT((Teams1=T81)*(Teams1_Score=Teams2_Score)*(Teams1_Score<>\"\"))+SUMPRODUCT((Teams2=T81)*(Teams2_Score=Teams1_Score)*(Teams2_Score<>\"\"))","v":0},{"$f":"SUMPRODUCT((Teams1=T81)*(Teams1_Score<Teams2_Score))+SUMPRODUCT((Teams2=T81)*(Teams2_Score<Teams1_Score))","v":2},{"$f":"SUMPRODUCT((Teams1=T81)*(Teams1_Score))+SUMPRODUCT((Teams2=T81)*(Teams2_Score))","v":3},{"$f":"SUMPRODUCT((Teams1=T81)*(Teams2_Score))+SUMPRODUCT((Teams2=T81)*(Teams1_Score))","v":4},-1,3]
[null,{"$f":"IF(ROWS($1:3)<=COUNTIF($S$21:$S$24,1),INDEX($T$21:$T$24,SMALL(IF($S$21:$S$24=1,ROW(INDIRECT(\"1:\"&ROWS($S$21:$S$24)))),ROWS($1:3))),\"\")","v":""}]
[null,{"$f":"IF(ROWS($1:4)<=COUNTIF($S$21:$S$24,1),INDEX($T$21:$T$24,SMALL(IF($S$21:$S$24=1,ROW(INDIRECT(\"1:\"&ROWS($S$21:$S$24)))),ROWS($1:4))),\"\")","v":""},null,null,null,null,null,null,null,null,null,null,null,null,null,null,null,null,"Rg","Groupe E","MJ","G","N","P","BP","BC","Pts","Pts"]
[null,"Tirage au sort C2",null,null,null,null,null,null,null,null,null,null,null,null,null,"E_1",{"$f":"TEXT(R84,\"00000\")&T84","v":"00720Costa Rica"},{"$f":"AB84*1000+AA84*100+Y84*10","v":720},{"$f":"RANK(R84,$R84:$R87,0)","v":4},{"$f":"VLOOKUP(P84,TABLEAU_TEAMS[#All],2,FALSE)","v":"Costa Rica"},{"$f":"SUMPRODUCT((Teams1=T84)*(Teams1_Score<>\"\"))+SUMPRODUCT((Teams2=T84)*(Teams2_Score<>\"\"))","v":3},{"$f":"SUMPRODUCT((Teams1=T84)*(Teams1_Score>Teams2_Score))+SUMPRODUCT((Teams2=T84)*(Teams2_Score>Teams1_Score))","v":0},{"$f":"SUMPRODUCT((Teams1=T84)*(Teams1_Score=Teams2_Score)*(Teams1_Score<>\"\"))+SUMPRODUCT((Teams2=T84)*(Teams2_Score=Teams1_Score)*(Teams2_Score<>\"\"))","v":1},{"$f":"SUMPRODUCT((Teams1=T84)*(Teams1_Score<Teams2_Score))+SUMPRODUCT((Teams2=T84)*(Teams2_Score<Teams1_Score))","v":2},{"$f":"SUMPRODUCT((Teams1=T84)*(Teams1_Score))+SUMPRODUCT((Teams2=T84)*(Teams2_Score))","v":2},{"$f":"SUMPRODUCT((Teams1=T84)*(Teams2_Score))+SUMPRODUCT((Teams2=T84)*(Teams1_Score))","v":5},{"$f":"Y84-Z84","v":-3},{"$f":"3*V84+W84","v":1}]
[null,{"$f":"IF(COUNTIF($S$21:$S$24,1)>1,IF(ROWS($1:1)<=COUNTIF($S$21:$S$24,1),INDEX($T$21:$T$24,SMALL(IF($S$21:$S$24=1,ROW(INDIRECT(\"1:\"&ROWS($S$21:$S$24)))),ROWS($1:1))),\"\"),IF(COUNTIF($S$21:$S$24,2)>1,IF(ROWS($1:1)<=COUNTIF($S$21:$S$24,2),INDEX($T$21:$T$24,SMALL(IF($S$21:$S$24=2,ROW(INDIRECT(\"1:\"&ROWS($S$21:$S$24)))),ROWS($1:1))),\"\")))","v":false},null,null,null,null,null,null,null,null,null,null,null,null,null,"E_2",{"$f":"TEXT(R85,\"00000\")&T85","v":"02820Serbie"},{"$f":"AB85*1000+AA85*100+Y85*10","v":2820},{"$f":"RANK(R85,$R84:$R87,0)","v":3},{"$f":"VLOOKUP(P85,TABLEAU_TEAMS[#All],2,FALSE)","v":"Serbie"},{"$f":"SUMPRODUCT((Teams1=T85)*(Teams1_Score<>\"\"))+SUMPRODUCT((Teams2=T85)*(Teams2_Score<>\"\"))","v":3},{"$f":"SUMPRODUCT((Teams1=T85)*(Teams1_Score>Teams2_Score))+SUMPRODUCT((Teams2=T85)*(Teams2_Score>Teams1_Score))","v":1},{"$f":"SUMPRODUCT((Teams1=T85)*(Teams1_Score=Teams2_Score)*(Teams1_Score<>\"\"))+SUMPRODUCT((Teams2=T85)*(Teams2_Score=Teams1_Score)*(Teams2_Score<>\"\"))","v":0},{"$f":"SUMPRODUCT((Teams1=T85)*(Teams1_Score<Teams2_Score))+SUMPRODUCT((Teams2=T85)*(Teams2_Score<Teams1_Score))","v":2},{"$f":"SUMPRODUCT((Teams1=T85)*(Teams1_Score))+SUMPRODUCT((Teams2=T85)*(Teams2_Score))","v":2},{"$f":"SUMPRODUCT((Teams1=T85)*(Teams2_Score))+SUMPRODUCT((Teams2=T85)*(Teams1_Score))","v":4},-2,3]
[null,{"$f":"IF(COUNTIF($S$21:$S$24,1)>1,IF(ROWS($1:2)<=COUNTIF($S$21:$S$24,1),INDEX($T$21:$T$24,SMALL(IF($S$21:$S$24=1,ROW(INDIRECT(\"1:\"&ROWS($S$21:$S$24)))),ROWS($1:2))),\"\"),IF(COUNTIF($S$21:$S$24,2)>1,IF(ROWS($1:2)<=COUNTIF($S$21:$S$24,2),INDEX($T$21:$T$24,SMALL(IF($S$21:$S$24=2,ROW(INDIRECT(\"1:\"&ROWS($S$21:$S$24)))),ROWS($1:2))),\"\")))","v":false},null,null,null,null,null,null,null,null,null,null,null,null,null,"E_3",{"$f":"TEXT(R86,\"00000\")&T86","v":"07450Brésil"},{"$f":"AB86*1000+AA86*100+Y86*10","v":7450},{"$f":"RANK(R86,$R84:$R87,0)","v":1},{"$f":"VLOOKUP(P86,TABLEAU_TEAMS[#All],2,FALSE)","v":"Brésil"},{"$f":"SUMPRODUCT((Teams1=T86)*(Teams1_Score<>\"\"))+SUMPRODUCT((Teams2=T86)*(Teams2_Score<>\"\"))","v":3},{"$f":"SUMPRODUCT((Teams1=T86)*(Teams1_Score>Teams2_Score))+SUMPRODUCT((Teams2=T86)*(Teams2_Score>Teams1_Score))","v":2},{"$f":"SUMPRODUCT((Teams1=T86)*(Teams1_Score=Teams2_Score)*(Teams1_Score<>\"\"))+SUMPRODUCT((Teams2=T86)*(Teams2_Score=Teams1_Score)*(Teams2_Score<>\"\"))","v":1},{"$f":"SUMPRODUCT((Teams1=T86)*(Teams1_Score<Teams2_Score))+SUMPRODUCT((Teams2=T86)*(Teams2_Score<Teams1_Score))","v":0},{"$f":"SUMPRODUCT((Teams1=T86)*(Teams1_Score))+SUMPRODUCT((Teams2=T86)*(Teams2_Score))","v":5},{"$f":"SUMPRODUCT((Teams1=T86)*(Teams2_Score))+SUMPRODUCT((Teams2=T86)*(Teams1_Score))","v":1},4,7]
[null,{"$f":"IF(COUNTIF($S$21:$S$24,1)>1,IF(ROWS($1:3)<=COUNTIF($S$21:$S$24,1),INDEX($T$21:$T$24,SMALL(IF($S$21:$S$24=1,ROW(INDIRECT(\"1:\"&ROWS($S$21:$S$24)))),ROWS($1:3))),\"\"),IF(COUNTIF($S$21:$S$24,2)>1,IF(ROWS($1:3)<=COUNTIF($S$21:$S$24,2),INDEX($T$21:$T$24,SMALL(IF($S$21:$S$24=2,ROW(INDIRECT(\"1:\"&ROWS($S$21:$S$24)))),ROWS($1:3))),\"\")))","v":false},null,null,null,null,null,null,null,null,null,null,null,null,null,"E_4",{"$f":"TEXT(R87,\"00000\")&T87","v":"05150Suisse"},{"$f":"AB87*1000+AA87*100+Y87*10","v":5150},{"$f":"RANK(R87,$R84:$R87,0)","v":2},{"$f":"VLOOKUP(P87,TABLEAU_TEAMS[#All],2,FALSE)","v":"Suisse"},{"$f":"SUMPRODUCT((Teams1=T87)*(Teams1_Score<>\"\"))+SUMPRODUCT((Teams2=T87)*(Teams2_Score<>\"\"))","v":3},{"$f":"SUMPRODUCT((Teams1=T87)*(Teams1_Score>Teams2_Score))+SUMPRODUCT((Teams2=T87)*(Teams2_Score>Teams1_Score))","v":1},{"$f":"SUMPRODUCT((Teams1=T87)*(Teams1_Score=Teams2_Score)*(Teams1_Score<>\"\"))+SUMPRODUCT((Teams2=T87)*(Teams2_Score=Teams1_Score)*(Teams2_Score<>\"\"))","v":2},{"$f":"SUMPRODUCT((Teams1=T87)*(Teams1_Score<Teams2_Score))+SUMPRODUCT((Teams2=T87)*(Teams2_Score<Teams1_Score))","v":0},{"$f":"SUMPRODUCT((Teams1=T87)*(Teams1_Score))+SUMPRODUCT((Teams2=T87)*(Teams2_Score))","v":5},{"$f":"SUMPRODUCT((Teams1=T87)*(Teams2_Score))+SUMPRODUCT((Teams2=T87)*(Teams1_Score))","v":4},1,5]
[null,{"$f":"IF(COUNTIF($S$21:$S$24,1)>1,IF(ROWS($1:4)<=COUNTIF($S$21:$S$24,1),INDEX($T$21:$T$24,SMALL(IF($S$21:$S$24=1,ROW(INDIRECT(\"1:\"&ROWS($S$21:$S$24)))),ROWS($1:4))),\"\"),IF(COUNTIF($S$21:$S$24,2)>1,IF(ROWS($1:4)<=COUNTIF($S$21:$S$24,2),INDEX($T$21:$T$24,SMALL(IF($S$21:$S$24=2,ROW(INDIRECT(\"1:\"&ROWS($S$21:$S$24)))),ROWS($1:4))),\"\")))","v":false}]
[null,"Tirage au sort D1",null,null,null,null,null,null,null,null,null,null,null,null,null,null,null,null,"Rg","Groupe F","MJ","G","N","P","BP","BC","Pts","Pts"]
[null,{"$f":"IF(ROWS($1:1)<=COUNTIF($S$27:$S$30,1),INDEX($T$27:$T$30,SMALL(IF($S$27:$S$30=1,ROW(INDIRECT(\"1:\"&ROWS($S$27:$S$30)))),ROWS($1:1))),\"\")","v":"Croatie"},null,null,null,null,null,null,null,null,null,null,null,null,null,"F_1",{"$f":"TEXT(R90,\"00000\")&T90","v":"02820Allemagne"},{"$f":"AB90*1000+AA90*100+Y90*10","v":2820},{"$f":"RANK(R90,$R90:$R93,0)","v":4},{"$f":"VLOOKUP(P90,TABLEAU_TEAMS[#All],2,FALSE)","v":"Allemagne"},{"$f":"SUMPRODUCT((Teams1=T90)*(Teams1_Score<>\"\"))+SUMPRODUCT((Teams2=T90)*(Teams2_Score<>\"\"))","v":3},{"$f":"SUMPRODUCT((Teams1=T90)*(Teams1_Score>Teams2_Score))+SUMPRODUCT((Teams2=T90)*(Teams2_Score>Teams1_Score))","v":1},{"$f":"SUMPRODUCT((Teams1=T90)*(Teams1_Score=Teams2_Score)*(Teams1_Score<>\"\"))+SUMPRODUCT((Teams2=T90)*(Teams2_Score=Teams1_Score)*(Teams2_Score<>\"\"))","v":0},{"$f":"SUMPRODUCT((Teams1=T90)*(Teams1_Score<Teams2_Score))+SUMPRODUCT((Teams2=T90)*(Teams2_Score<Teams1_Score))","v":2},{"$f":"SUMPRODUCT((Teams1=T90)*(Teams1_Score))+SUMPRODUCT((Teams2=T90)*(Teams2_Score))","v":2},{"$f":"SUMPRODUCT((Teams1=T90)*(Teams2_Score))+SUMPRODUCT((Teams2=T90)*(Teams1_Score))","v":4},{"$f":"Y90-Z90","v":-2},{"$f":"3*V90+W90","v":3}]
[null,{"$f":"IF(ROWS($1:2)<=COUNTIF($S$27:$S$30,1),INDEX($T$27:$T$30,SMALL(IF($S$27:$S$30=1,ROW(INDIRECT(\"1:\"&ROWS($S$27:$S$30)))),ROWS($1:2))),\"\")","v":""},null,null,null,null,null,null,null,null,null,null,null,null,null,"F_2",{"$f":"TEXT(R91,\"00000\")&T91","v":"05930Mexique"},{"$f":"AB91*1000+AA91*100+Y91*10","v":5930},{"$f":"RANK(R91,$R90:$R93,0)","v":2},{"$f":"VLOOKUP(P91,TABLEAU_TEAMS[#All],2,FALSE)","v":"Mexique"},{"$f":"SUMPRODUCT((Teams1=T91)*(Teams1_Score<>\"\"))+SUMPRODUCT((Teams2=T91)*(Teams2_Score<>\"\"))","v":3},{"$f":"SUMPRODUCT((Teams1=T91)*(Teams1_Score>Teams2_Score))+SUMPRODUCT((Teams2=T91)*(Teams2_Score>Teams1_Score))","v":2},{"$f":"SUMPRODUCT((Teams1=T91)*(Teams1_Score=Teams2_Score)*(Teams1_Score<>\"\"))+SUMPRODUCT((Teams2=T91)*(Teams2_Score=Teams1_Score)*(Teams2_Score<>\"\"))","v":0},{"$f":"SUMPRODUCT((Teams1=T91)*(Teams1_Score<Teams2_Score))+SUMPRODUCT((Teams2=T91)*(Teams2_Score<Teams1_Score))","v":1},{"$f":"SUMPRODUCT((Teams1=T91)*(Teams1_Score))+SUMPRODUCT((Teams2=T91)*(Teams2_Score))","v":3},{"$f":"SUMPRODUCT((Teams1=T91)*(Teams2_Score))+SUMPRODUCT((Teams2=T91)*(Teams1_Score))","v":4},-1,6]
[null,{"$f":"IF(ROWS($1:3)<=COUNTIF($S$27:$S$30,1),INDEX($T$27:$T$30,SMALL(IF($S$27:$S$30=1,ROW(INDIRECT(\"1:\"&ROWS($S$27:$S$30)))),ROWS($1:3))),\"\")","v":""},null,null,null,null,null,null,null,null,null,null,null,null,null,"F_3",{"$f":"TEXT(R92,\"00000\")&T92","v":"06350Suède"},{"$f":"AB92*1000+AA92*100+Y92*10","v":6350},{"$f":"RANK(R92,$R90:$R93,0)","v":1},{"$f":"VLOOKUP(P92,TABLEAU_TEAMS[#All],2,FALSE)","v":"Suède"},{"$f":"SUMPRODUCT((Teams1=T92)*(Teams1_Score<>\"\"))+SUMPRODUCT((Teams2=T92)*(Teams2_Score<>\"\"))","v":3},{"$f":"SUMPRODUCT((Teams1=T92)*(Teams1_Score>Teams2_Score))+SUMPRODUCT((Teams2=T92)*(Teams2_Score>Teams1_Score))","v":2},{"$f":"SUMPRODUCT((Teams1=T92)*(Teams1_Score=Teams2_Score)*(Teams1_Score<>\"\"))+SUMPRODUCT((Teams2=T92)*(Teams2_Score=Teams1_Score)*(Teams2_Score<>\"\"))","v":0},{"$f":"SUMPRODUCT((Teams1=T92)*(Teams1_Score<Teams2_Score))+SUMPRODUCT((Teams2=T92)*(Teams2_Score<Teams1_Score))","v":1},{"$f":"SUMPRODUCT((Teams1=T92)*(Teams1_Score))+SUMPRODUCT((Teams2=T92)*(Teams2_Score))","v":5},{"$f":"SUMPRODUCT((Teams1=T92)*(Teams2_Score))+SUMPRODUCT((Teams2=T92)*(Teams1_Score))","v":2},3,6]
[null,{"$f":"IF(ROWS($1:4)<=COUNTIF($S$27:$S$30,1),INDEX($T$27:$T$30,SMALL(IF($S$27:$S$30=1,ROW(INDIRECT(\"1:\"&ROWS($S$27:$S$30)))),ROWS($1:4))),\"\")","v":""},null,null,null,null,null,null,null,null,null,null,null,null,null,"F_4",{"$f":"TEXT(R93,\"00000\")&T93","v":"03030République de Corée"},{"$f":"AB93*1000+AA93*100+Y93*10","v":3030},{"$f":"RANK(R93,$R90:$R93,0)","v":3},{"$f":"VLOOKUP(P93,TABLEAU_TEAMS[#All],2,FALSE)","v":"République de Corée"},{"$f":"SUMPRODUCT((Teams1=T93)*(Teams1_Score<>\"\"))+SUMPRODUCT((Teams2=T93)*(Teams2_Score<>\"\"))","v":3},{"$f":"SUMPRODUCT((Teams1=T93)*(Teams1_Score>Teams2_Score))+SUMPRODUCT((Teams2=T93)*(Teams2_Score>Teams1_Score))","v":1},{"$f":"SUMPRODUCT((Teams1=T93)*(Teams1_Score=Teams2_Score)*(Teams1_Score<>\"\"))+SUMPRODUCT((Teams2=T93)*(Teams2_Score=Teams1_Score)*(Teams2_Score<>\"\"))","v":0},{"$f":"SUMPRODUCT((Teams1=T93)*(Teams1_Score<Teams2_Score))+SUMPRODUCT((Teams2=T93)*(Teams2_Score<Teams1_Score))","v":2},{"$f":"SUMPRODUCT((Teams1=T93)*(Teams1_Score))+SUMPRODUCT((Teams2=T93)*(Teams2_Score))","v":3},{"$f":"SUMPRODUCT((Teams1=T93)*(Teams2_Score))+SUMPRODUCT((Teams2=T93)*(Teams1_Score))","v":3},0,3]
[null,"Tirage au sort D2"]
[null,{"$f":"IF(COUNTIF($S$27:$S$30,1)>1,IF(ROWS($1:1)<=COUNTIF($S$27:$S$30,1),INDEX($T$27:$T$30,SMALL(IF($S$27:$S$30=1,ROW(INDIRECT(\"1:\"&ROWS($S$27:$S$30)))),ROWS($1:1))),\"\"),IF(COUNTIF($S$27:$S$30,2)>1,IF(ROWS($1:1)<=COUNTIF($S$27:$S$30,2),INDEX($T$27:$T$30,SMALL(IF($S$27:$S$30=2,ROW(INDIRECT(\"1:\"&ROWS($S$27:$S$30)))),ROWS($1:1))),\"\")))","v":false},null,null,null,null,null,null,null,null,null,null,null,null,null,null,null,null,"Rg","Groupe G","MJ","G","N","P","BP","BC","Pts","Pts"]
[null,{"$f":"IF(COUNTIF($S$27:$S$30,1)>1,IF(ROWS($1:2)<=COUNTIF($S$27:$S$30,1),INDEX($T$27:$T$30,SMALL(IF($S$27:$S$30=1,ROW(INDIRECT(\"1:\"&ROWS($S$27:$S$30)))),ROWS($1:2))),\"\"),IF(COUNTIF($S$27:$S$30,2)>1,IF(ROWS($1:2)<=COUNTIF($S$27:$S$30,2),INDEX($T$27:$T$30,SMALL(IF($S$27:$S$30=2,ROW(INDIRECT(\"1:\"&ROWS($S$27:$S$30)))),ROWS($1:2))),\"\")))","v":false},null,null,null,null,null,null,null,null,null,null,null,null,null,"G_1",{"$f":"TEXT(R96,\"00000\")&T96","v":"09790Belgique"},{"$f":"AB96*1000+AA96*100+Y96*10","v":9790},{"$f":"RANK(R96,$R96:$R99,0)","v":1},{"$f":"VLOOKUP(P96,TABLEAU_TEAMS[#All],2,FALSE)","v":"Belgique"},{"$f":"SUMPRODUCT((Teams1=T96)*(Teams1_Score<>\"\"))+SUMPRODUCT((Teams2=T96)*(Teams2_Score<>\"\"))","v":3},{"$f":"SUMPRODUCT((Teams1=T96)*(Teams1_Score>Teams2_Score))+SUMPRODUCT((Teams2=T96)*(Teams2_Score>Teams1_Score))","v":3},{"$f":"SUMPRODUCT((Teams1=T96)*(Teams1_Score=Teams2_Score)*(Teams1_Score<>\"\"))+SUMPRODUCT((Teams2=T96)*(Teams2_Score=Teams1_Score)*(Teams2_Score<>\"\"))","v":0},{"$f":"SUMPRODUCT((Teams1=T96)*(Teams1_Score<Teams2_Score))+SUMPRODUCT((Teams2=T96)*(Teams2_Score<Teams1_Score))","v":0},{"$f":"SUMPRODUCT((Teams1=T96)*(Teams1_Score))+SUMPRODUCT((Teams2=T96)*(Teams2_Score))","v":9},{"$f":"SUMPRODUCT((Teams1=T96)*(Teams2_Score))+SUMPRODUCT((Teams2=T96)*(Teams1_Score))","v":2},{"$f":"Y96-Z96","v":7},{"$f":"3*V96+W96","v":9}]
[null,{"$f":"IF(COUNTIF($S$27:$S$30,1)>1,IF(ROWS($1:3)<=COUNTIF($S$27:$S$30,1),INDEX($T$27:$T$30,SMALL(IF($S$27:$S$30=1,ROW(INDIRECT(\"1:\"&ROWS($S$27:$S$30)))),ROWS($1:3))),\"\"),IF(COUNTIF($S$27:$S$30,2)>1,IF(ROWS($1:3)<=COUNTIF($S$27:$S$30,2),INDEX($T$27:$T$30,SMALL(IF($S$27:$S$30=2,ROW(INDIRECT(\"1:\"&ROWS($S$27:$S$30)))),ROWS($1:3))),\"\")))","v":false},null,null,null,null,null,null,null,null,null,null,null,null,null,"G_2",{"$f":"TEXT(R97,\"00000\")&T97","v":"-00880Panama"},{"$f":"AB97*1000+AA97*100+Y97*10","v":-880},{"$f":"RANK(R97,$R96:$R99,0)","v":4},{"$f":"VLOOKUP(P97,TABLEAU_TEAMS[#All],2,FALSE)","v":"Panama"},{"$f":"SUMPRODUCT((Teams1=T97)*(Teams1_Score<>\"\"))+SUMPRODUCT((Teams2=T97)*(Teams2_Score<>\"\"))","v":3},{"$f":"SUMPRODUCT((Teams1=T97)*(Teams1_Score>Teams2_Score))+SUMPRODUCT((Teams2=T97)*(Teams2_Score>Teams1_Score))","v":0},{"$f":"SUMPRODUCT((Teams1=T97)*(Teams1_Score=Teams2_Score)*(Teams1_Score<>\"\"))+SUMPRODUCT((Teams2=T97)*(Teams2_Score=Teams1_Score)*(Teams2_Score<>\"\"))","v":0},{"$f":"SUMPRODUCT((Teams1=T97)*(Teams1_Score<Teams2_Score))+SUMPRODUCT((Teams2=T97)*(Teams2_Score<Teams1_Score))","v":3},{"$f":"SUMPRODUCT((Teams1=T97)*(Teams1_Score))+SUMPRODUCT((Teams2=T97)*(Teams2_Score))","v":2},{"$f":"SUMPRODUCT((Teams1=T97)*(Teams2_Score))+SUMPRODUCT((Teams2=T97)*(Teams1_Score))","v":11},-9,0]
[null,{"$f":"IF(COUNTIF($S$27:$S$30,1)>1,IF(ROWS($1:4)<=COUNTIF($S$27:$S$30,1),INDEX($T$27:$T$30,SMALL(IF($S$27:$S$30=1,ROW(INDIRECT(\"1:\"&ROWS($S$27:$S$30)))),ROWS($1:4))),\"\"),IF(COUNTIF($S$27:$S$30,2)>1,IF(ROWS($1:4)<=COUNTIF($S$27:$S$30,2),INDEX($T$27:$T$30,SMALL(IF($S$27:$S$30=2,ROW(INDIRECT(\"1:\"&ROWS($S$27:$S$30)))),ROWS($1:4))),\"\")))","v":false},null,null,null,null,null,null,null,null,null,null,null,null,null,"G_3",{"$f":"TEXT(R98,\"00000\")&T98","v":"02750Tunisie"},{"$f":"AB98*1000+AA98*100+Y98*10","v":2750},{"$f":"RANK(R98,$R96:$R99,0)","v":3},{"$f":"VLOOKUP(P98,TABLEAU_TEAMS[#All],2,FALSE)","v":"Tunisie"},{"$f":"SUMPRODUCT((Teams1=T98)*(Teams1_Score<>\"\"))+SUMPRODUCT((Teams2=T98)*(Teams2_Score<>\"\"))","v":3},{"$f":"SUMPRODUCT((Teams1=T98)*(Teams1_Score>Teams2_Score))+SUMPRODUCT((Teams2=T98)*(Teams2_Score>Teams1_Score))","v":1},{"$f":"SUMPRODUCT((Teams1=T98)*(Teams1_Score=Teams2_Score)*(Teams1_Score<>\"\"))+SUMPRODUCT((Teams2=T98)*(Teams2_Score=Teams1_Score)*(Teams2_Score<>\"\"))","v":0},{"$f":"SUMPRODUCT((Teams1=T98)*(Teams1_Score<Teams2_Score))+SUMPRODUCT((Teams2=T98)*(Teams2_Score<Teams1_Score))","v":2},{"$f":"SUMPRODUCT((Teams1=T98)*(Teams1_Score))+SUMPRODUCT((Teams2=T98)*(Teams2_Score))","v":5},{"$f":"SUMPRODUCT((Teams1=T98)*(Teams2_Score))+SUMPRODUCT((Teams2=T98)*(Teams1_Score))","v":8},-3,3]
[null,"Tirage au sort E1",null,null,null,null,null,null,null,null,null,null,null,null,null,"G_4",{"$f":"TEXT(R99,\"00000\")&T99","v":"06580Angleterre"},{"$f":"AB99*1000+AA99*100+Y99*10","v":6580},{"$f":"RANK(R99,$R96:$R99,0)","v":2},{"$f":"VLOOKUP(P99,TABLEAU_TEAMS[#All],2,FALSE)","v":"Angleterre"},{"$f":"SUMPRODUCT((Teams1=T99)*(Teams1_Score<>\"\"))+SUMPRODUCT((Teams2=T99)*(Teams2_Score<>\"\"))","v":3},{"$f":"SUMPRODUCT((Teams1=T99)*(Teams1_Score>Teams2_Score))+SUMPRODUCT((Teams2=T99)*(Teams2_Score>Teams1_Score))","v":2},{"$f":"SUMPRODUCT((Teams1=T99)*(Teams1_Score=Teams2_Score)*(Teams1_Score<>\"\"))+SUMPRODUCT((Teams2=T99)*(Teams2_Score=Teams1_Score)*(Teams2_Score<>\"\"))","v":0},{"$f":"SUMPRODUCT((Teams1=T99)*(Teams1_Score<Teams2_Score))+SUMPRODUCT((Teams2=T99)*(Teams2_Score<Teams1_Score))","v":1},{"$f":"SUMPRODUCT((Teams1=T99)*(Teams1_Score))+SUMPRODUCT((Teams2=T99)*(Teams2_Score))","v":8},{"$f":"SUMPRODUCT((Teams1=T99)*(Teams2_Score))+SUMPRODUCT((Teams2=T99)*(Teams1_Score))","v":3},5,6]
[null,{"$f":"IF(ROWS($1:1)<=COUNTIF($S$33:$S$36,1),INDEX($T$33:$T$36,SMALL(IF($S$33:$S$36=1,ROW(INDIRECT(\"1:\"&ROWS($S$33:$S$36)))),ROWS($1:1))),\"\")","v":"Brésil"}]
[null,{"$f":"IF(ROWS($1:2)<=COUNTIF($S$33:$S$36,1),INDEX($T$33:$T$36,SMALL(IF($S$33:$S$36=1,ROW(INDIRECT(\"1:\"&ROWS($S$33:$S$36)))),ROWS($1:2))),\"\")","v":""},null,null,null,null,null,null,null,null,null,null,null,null,null,null,null,null,"Rg","Groupe H","MJ","G","N","P","BP","BC","Pts","Pts"]
[null,{"$f":"IF(ROWS($1:3)<=COUNTIF($S$33:$S$36,1),INDEX($T$33:$T$36,SMALL(IF($S$33:$S$36=1,ROW(INDIRECT(\"1:\"&ROWS($S$33:$S$36)))),ROWS($1:3))),\"\")","v":""},null,null,null,null,null,null,null,null,null,null,null,null,null,"H_1",{"$f":"TEXT(R102,\"00000\")&T102","v":"06350Colombie"},{"$f":"AB102*1000+AA102*100+Y102*10","v":6350},{"$f":"RANK(R102,$R102:$R105,0)","v":1},{"$f":"VLOOKUP(P102,TABLEAU_TEAMS[#All],2,FALSE)","v":"Colombie"},{"$f":"SUMPRODUCT((Teams1=T102)*(Teams1_Score<>\"\"))+SUMPRODUCT((Teams2=T102)*(Teams2_Score<>\"\"))","v":3},{"$f":"SUMPRODUCT((Teams1=T102)*(Teams1_Score>Teams2_Score))+SUMPRODUCT((Teams2=T102)*(Teams2_Score>Teams1_Score))","v":2},{"$f":"SUMPRODUCT((Teams1=T102)*(Teams1_Score=Teams2_Score)*(Teams1_Score<>\"\"))+SUMPRODUCT((Teams2=T102)*(Teams2_Score=Teams1_Score)*(Teams2_Score<>\"\"))","v":0},{"$f":"SUMPRODUCT((Teams1=T102)*(Teams1_Score<Teams2_Score))+SUMPRODUCT((Teams2=T102)*(Teams2_Score<Teams1_Score))","v":1},{"$f":"SUMPRODUCT((Teams1=T102)*(Teams1_Score))+SUMPRODUCT((Teams2=T102)*(Teams2_Score))","v":5},{"$f":"SUMPRODUCT((Teams1=T102)*(Teams2_Score))+SUMPRODUCT((Teams2=T102)*(Teams1_Score))","v":2},{"$f":"Y102-Z102","v":3},{"$f":"3*V102+W102","v":6}]
[null,{"$f":"IF(ROWS($1:4)<=COUNTIF($S$33:$S$36,1),INDEX($T$33:$T$36,SMALL(IF($S$33:$S$36=1,ROW(INDIRECT(\"1:\"&ROWS($S$33:$S$36)))),ROWS($1:4))),\"\")","v":""},null,null,null,null,null,null,null,null,null,null,null,null,null,"H_2",{"$f":"TEXT(R103,\"00000\")&T103","v":"04040Japon"},{"$f":"AB103*1000+AA103*100+Y103*10","v":4040},{"$f":"RANK(R103,$R102:$R105,0)","v":2},{"$f":"VLOOKUP(P103,TABLEAU_TEAMS[#All],2,FALSE)","v":"Japon"},{"$f":"SUMPRODUCT((Teams1=T103)*(Teams1_Score<>\"\"))+SUMPRODUCT((Teams2=T103)*(Teams2_Score<>\"\"))","v":3},{"$f":"SUMPRODUCT((Teams1=T103)*(Teams1_Score>Teams2_Score))+SUMPRODUCT((Teams2=T103)*(Teams2_Score>Teams1_Score))","v":1},{"$f":"SUMPRODUCT((Teams1=T103)*(Teams1_Score=Teams2_Score)*(Teams1_Score<>\"\"))+SUMPRODUCT((Teams2=T103)*(Teams2_Score=Teams1_Score)*(Teams2_Score<>\"\"))","v":1},{"$f":"SUMPRODUCT((Teams1=T103)*(Teams1_Score<Teams2_Score))+SUMPRODUCT((Teams2=T103)*(Teams2_Score<Teams1_Score))","v":1},{"$f":"SUMPRODUCT((Teams1=T103)*(Teams1_Score))+SUMPRODUCT((Teams2=T103)*(Teams2_Score))","v":4},{"$f":"SUMPRODUCT((Teams1=T103)*(Teams2_Score))+SUMPRODUCT((Teams2=T103)*(Teams1_Score))","v":4},0,4]
[null,"Tirage au sort E2",null,null,null,null,null,null,null,null,null,null,null,null,null,"H_3",{"$f":"TEXT(R104,\"00000\")&T104","v":"02720Pologne"},{"$f":"AB104*1000+AA104*100+Y104*10","v":2720},{"$f":"RANK(R104,$R102:$R105,0)","v":4},{"$f":"VLOOKUP(P104,TABLEAU_TEAMS[#All],2,FALSE)","v":"Pologne"},{"$f":"SUMPRODUCT((Teams1=T104)*(Teams1_Score<>\"\"))+SUMPRODUCT((Teams2=T104)*(Teams2_Score<>\"\"))","v":3},{"$f":"SUMPRODUCT((Teams1=T104)*(Teams1_Score>Teams2_Score))+SUMPRODUCT((Teams2=T104)*(Teams2_Score>Teams1_Score))","v":1},{"$f":"SUMPRODUCT((Teams1=T104)*(Teams1_Score=Teams2_Score)*(Teams1_Score<>\"\"))+SUMPRODUCT((Teams2=T104)*(Teams2_Score=Teams1_Score)*(Teams2_Score<>\"\"))","v":0},{"$f":"SUMPRODUCT((Teams1=T104)*(Teams1_Score<Teams2_Score))+SUMPRODUCT((Teams2=T104)*(Teams2_Score<Teams1_Score))","v":2},{"$f":"SUMPRODUCT((Teams1=T104)*(Teams1_Score))+SUMPRODUCT((Teams2=T104)*(Teams2_Score))","v":2},{"$f":"SUMPRODUCT((Teams1=T104)*(Teams2_Score))+SUMPRODUCT((Teams2=T104)*(Teams1_Score))","v":5},-3,3]
[null,{"$f":"IF(COUNTIF($S$33:$S$36,1)>1,IF(ROWS($1:1)<=COUNTIF($S$33:$S$36,1),INDEX($T$33:$T$36,SMALL(IF($S$33:$S$36=1,ROW(INDIRECT(\"1:\"&ROWS($S$33:$S$36)))),ROWS($1:1))),\"\"),IF(COUNTIF($S$33:$S$36,2)>1,IF(ROWS($1:1)<=COUNTIF($S$33:$S$36,2),INDEX($T$33:$T$36,SMALL(IF($S$33:$S$36=2,ROW(INDIRECT(\"1:\"&ROWS($S$33:$S$36)))),ROWS($1:1))),\"\")))","v":false},null,null,null,null,null,null,null,null,null,null,null,null,null,"H_4",{"$f":"TEXT(R105,\"00000\")&T105","v":"04040Sénégal"},{"$f":"AB105*1000+AA105*100+Y105*10","v":4040},{"$f":"RANK(R105,$R102:$R105,0)","v":2},{"$f":"VLOOKUP(P105,TABLEAU_TEAMS[#All],2,FALSE)","v":"Sénégal"},{"$f":"SUMPRODUCT((Teams1=T105)*(Teams1_Score<>\"\"))+SUMPRODUCT((Teams2=T105)*(Teams2_Score<>\"\"))","v":3},{"$f":"SUMPRODUCT((Teams1=T105)*(Teams1_Score>Teams2_Score))+SUMPRODUCT((Teams2=T105)*(Teams2_Score>Teams1_Score))","v":1},{"$f":"SUMPRODUCT((Teams1=T105)*(Teams1_Score=Teams2_Score)*(Teams1_Score<>\"\"))+SUMPRODUCT((Teams2=T105)*(Teams2_Score=Teams1_Score)*(Teams2_Score<>\"\"))","v":1},{"$f":"SUMPRODUCT((Teams1=T105)*(Teams1_Score<Teams2_Score))+SUMPRODUCT((Teams2=T105)*(Teams2_Score<Teams1_Score))","v":1},{"$f":"SUMPRODUCT((Teams1=T105)*(Teams1_Score))+SUMPRODUCT((Teams2=T105)*(Teams2_Score))","v":4},{"$f":"SUMPRODUCT((Teams1=T105)*(Teams2_Score))+SUMPRODUCT((Teams2=T105)*(Teams1_Score))","v":4},0,4]
[null,{"$f":"IF(COUNTIF($S$33:$S$36,1)>1,IF(ROWS($1:2)<=COUNTIF($S$33:$S$36,1),INDEX($T$33:$T$36,SMALL(IF($S$33:$S$36=1,ROW(INDIRECT(\"1:\"&ROWS($S$33:$S$36)))),ROWS($1:2))),\"\"),IF(COUNTIF($S$33:$S$36,2)>1,IF(ROWS($1:2)<=COUNTIF($S$33:$S$36,2),INDEX($T$33:$T$36,SMALL(IF($S$33:$S$36=2,ROW(INDIRECT(\"1:\"&ROWS($S$33:$S$36)))),ROWS($1:2))),\"\")))","v":false}]
[null,{"$f":"IF(COUNTIF($S$33:$S$36,1)>1,IF(ROWS($1:3)<=COUNTIF($S$33:$S$36,1),INDEX($T$33:$T$36,SMALL(IF($S$33:$S$36=1,ROW(INDIRECT(\"1:\"&ROWS($S$33:$S$36)))),ROWS($1:3))),\"\"),IF(COUNTIF($S$33:$S$36,2)>1,IF(ROWS($1:3)<=COUNTIF($S$33:$S$36,2),INDEX($T$33:$T$36,SMALL(IF($S$33:$S$36=2,ROW(INDIRECT(\"1:\"&ROWS($S$33:$S$36)))),ROWS($1:3))),\"\")))","v":false}]
[null,{"$f":"IF(COUNTIF($S$33:$S$36,1)>1,IF(ROWS($1:4)<=COUNTIF($S$33:$S$36,1),INDEX($T$33:$T$36,SMALL(IF($S$33:$S$36=1,ROW(INDIRECT(\"1:\"&ROWS($S$33:$S$36)))),ROWS($1:4))),\"\"),IF(COUNTIF($S$33:$S$36,2)>1,IF(ROWS($1:4)<=COUNTIF($S$33:$S$36,2),INDEX($T$33:$T$36,SMALL(IF($S$33:$S$36=2,ROW(INDIRECT(\"1:\"&ROWS($S$33:$S$36)))),ROWS($1:4))),\"\")))","v":false}]
[null,"Tirage au sort F1"]
[null,{"$f":"IF(ROWS($1:1)<=COUNTIF($S$39:$S$42,1),INDEX($T$39:$T$42,SMALL(IF($S$39:$S$42=1,ROW(INDIRECT(\"1:\"&ROWS($S$39:$S$42)))),ROWS($1:1))),\"\")","v":"Suède"}]
[null,{"$f":"IF(ROWS($1:2)<=COUNTIF($S$39:$S$42,1),INDEX($T$39:$T$42,SMALL(IF($S$39:$S$42=1,ROW(INDIRECT(\"1:\"&ROWS($S$39:$S$42)))),ROWS($1:2))),\"\")","v":""}]
[null,{"$f":"IF(ROWS($1:3)<=COUNTIF($S$39:$S$42,1),INDEX($T$39:$T$42,SMALL(IF($S$39:$S$42=1,ROW(INDIRECT(\"1:\"&ROWS($S$39:$S$42)))),ROWS($1:3))),\"\")","v":""}]
[null,{"$f":"IF(ROWS($1:4)<=COUNTIF($S$39:$S$42,1),INDEX($T$39:$T$42,SMALL(IF($S$39:$S$42=1,ROW(INDIRECT(\"1:\"&ROWS($S$39:$S$42)))),ROWS($1:4))),\"\")","v":""}]
[null,"Tirage au sort F2"]
[null,{"$f":"IF(COUNTIF($S$39:$S$42,1)>1,IF(ROWS($1:1)<=COUNTIF($S$39:$S$42,1),INDEX($T$39:$T$42,SMALL(IF($S$39:$S$42=1,ROW(INDIRECT(\"1:\"&ROWS($S$39:$S$42)))),ROWS($1:1))),\"\"),IF(COUNTIF($S$39:$S$42,2)>1,IF(ROWS($1:1)<=COUNTIF($S$39:$S$42,2),INDEX($T$39:$T$42,SMALL(IF($S$39:$S$42=2,ROW(INDIRECT(\"1:\"&ROWS($S$39:$S$42)))),ROWS($1:1))),\"\")))","v":false}]
[null,{"$f":"IF(COUNTIF($S$39:$S$42,1)>1,IF(ROWS($1:2)<=COUNTIF($S$39:$S$42,1),INDEX($T$39:$T$42,SMALL(IF($S$39:$S$42=1,ROW(INDIRECT(\"1:\"&ROWS($S$39:$S$42)))),ROWS($1:2))),\"\"),IF(COUNTIF($S$39:$S$42,2)>1,IF(ROWS($1:2)<=COUNTIF($S$39:$S$42,2),INDEX($T$39:$T$42,SMALL(IF($S$39:$S$42=2,ROW(INDIRECT(\"1:\"&ROWS($S$39:$S$42)))),ROWS($1:2))),\"\")))","v":false}]
[null,{"$f":"IF(COUNTIF($S$39:$S$42,1)>1,IF(ROWS($1:3)<=COUNTIF($S$39:$S$42,1),INDEX($T$39:$T$42,SMALL(IF($S$39:$S$42=1,ROW(INDIRECT(\"1:\"&ROWS($S$39:$S$42)))),ROWS($1:3))),\"\"),IF(COUNTIF($S$39:$S$42,2)>1,IF(ROWS($1:3)<=COUNTIF($S$39:$S$42,2),INDEX($T$39:$T$42,SMALL(IF($S$39:$S$42=2,ROW(INDIRECT(\"1:\"&ROWS($S$39:$S$42)))),ROWS($1:3))),\"\")))","v":false}]
[null,{"$f":"IF(COUNTIF($S$39:$S$42,1)>1,IF(ROWS($1:4)<=COUNTIF($S$39:$S$42,1),INDEX($T$39:$T$42,SMALL(IF($S$39:$S$42=1,ROW(INDIRECT(\"1:\"&ROWS($S$39:$S$42)))),ROWS($1:4))),\"\"),IF(COUNTIF($S$39:$S$42,2)>1,IF(ROWS($1:4)<=COUNTIF($S$39:$S$42,2),INDEX($T$39:$T$42,SMALL(IF($S$39:$S$42=2,ROW(INDIRECT(\"1:\"&ROWS($S$39:$S$42)))),ROWS($1:4))),\"\")))","v":false}]
[null,"Tirage au sort G1"]
[null,{"$f":"IF(ROWS($1:1)<=COUNTIF($S$45:$S$48,1),INDEX($T$45:$T$48,SMALL(IF($S$45:$S$48=1,ROW(INDIRECT(\"1:\"&ROWS($S$45:$S$48)))),ROWS($1:1))),\"\")","v":"Belgique"}]
[null,{"$f":"IF(ROWS($1:2)<=COUNTIF($S$45:$S$48,1),INDEX($T$45:$T$48,SMALL(IF($S$45:$S$48=1,ROW(INDIRECT(\"1:\"&ROWS($S$45:$S$48)))),ROWS($1:2))),\"\")","v":""}]
[null,{"$f":"IF(ROWS($1:3)<=COUNTIF($S$45:$S$48,1),INDEX($T$45:$T$48,SMALL(IF($S$45:$S$48=1,ROW(INDIRECT(\"1:\"&ROWS($S$45:$S$48)))),ROWS($1:3))),\"\")","v":""}]
[null,{"$f":"IF(ROWS($1:4)<=COUNTIF($S$45:$S$48,1),INDEX($T$45:$T$48,SMALL(IF($S$45:$S$48=1,ROW(INDIRECT(\"1:\"&ROWS($S$45:$S$48)))),ROWS($1:4))),\"\")","v":""}]
[null,"Tirage au sort G2"]
[null,{"$f":"IF(COUNTIF($S$45:$S$48,1)>1,IF(ROWS($1:1)<=COUNTIF($S$45:$S$48,1),INDEX($T$45:$T$48,SMALL(IF($S$45:$S$48=1,ROW(INDIRECT(\"1:\"&ROWS($S$45:$S$48)))),ROWS($1:1))),\"\"),IF(COUNTIF($S$45:$S$48,2)>1,IF(ROWS($1:1)<=COUNTIF($S$45:$S$48,2),INDEX($T$45:$T$48,SMALL(IF($S$45:$S$48=2,ROW(INDIRECT(\"1:\"&ROWS($S$45:$S$48)))),ROWS($1:1))),\"\")))","v":false}]
[null,{"$f":"IF(COUNTIF($S$45:$S$48,1)>1,IF(ROWS($1:2)<=COUNTIF($S$45:$S$48,1),INDEX($T$45:$T$48,SMALL(IF($S$45:$S$48=1,ROW(INDIRECT(\"1:\"&ROWS($S$45:$S$48)))),ROWS($1:2))),\"\"),IF(COUNTIF($S$45:$S$48,2)>1,IF(ROWS($1:2)<=COUNTIF($S$45:$S$48,2),INDEX($T$45:$T$48,SMALL(IF($S$45:$S$48=2,ROW(INDIRECT(\"1:\"&ROWS($S$45:$S$48)))),ROWS($1:2))),\"\")))","v":false}]
[null,{"$f":"IF(COUNTIF($S$45:$S$48,1)>1,IF(ROWS($1:3)<=COUNTIF($S$45:$S$48,1),INDEX($T$45:$T$48,SMALL(IF($S$45:$S$48=1,ROW(INDIRECT(\"1:\"&ROWS($S$45:$S$48)))),ROWS($1:3))),\"\"),IF(COUNTIF($S$45:$S$48,2)>1,IF(ROWS($1:3)<=COUNTIF($S$45:$S$48,2),INDEX($T$45:$T$48,SMALL(IF($S$45:$S$48=2,ROW(INDIRECT(\"1:\"&ROWS($S$45:$S$48)))),ROWS($1:3))),\"\")))","v":false}]
[null,{"$f":"IF(COUNTIF($S$45:$S$48,1)>1,IF(ROWS($1:4)<=COUNTIF($S$45:$S$48,1),INDEX($T$45:$T$48,SMALL(IF($S$45:$S$48=1,ROW(INDIRECT(\"1:\"&ROWS($S$45:$S$48)))),ROWS($1:4))),\"\"),IF(COUNTIF($S$45:$S$48,2)>1,IF(ROWS($1:4)<=COUNTIF($S$45:$S$48,2),INDEX($T$45:$T$48,SMALL(IF($S$45:$S$48=2,ROW(INDIRECT(\"1:\"&ROWS($S$45:$S$48)))),ROWS($1:4))),\"\")))","v":false}]
[null,"Tirage au sort H1"]
[null,{"$f":"IF(ROWS($1:1)<=COUNTIF($S$51:$S$54,1),INDEX($T$51:$T$54,SMALL(IF($S$51:$S$54=1,ROW(INDIRECT(\"1:\"&ROWS($S$51:$S$54)))),ROWS($1:1))),\"\")","v":"Colombie"}]
[null,{"$f":"IF(ROWS($1:2)<=COUNTIF($S$51:$S$54,1),INDEX($T$51:$T$54,SMALL(IF($S$51:$S$54=1,ROW(INDIRECT(\"1:\"&ROWS($S$51:$S$54)))),ROWS($1:2))),\"\")","v":""}]
[null,{"$f":"IF(ROWS($1:3)<=COUNTIF($S$51:$S$54,1),INDEX($T$51:$T$54,SMALL(IF($S$51:$S$54=1,ROW(INDIRECT(\"1:\"&ROWS($S$51:$S$54)))),ROWS($1:3))),\"\")","v":""}]
[null,{"$f":"IF(ROWS($1:4)<=COUNTIF($S$51:$S$54,1),INDEX($T$51:$T$54,SMALL(IF($S$51:$S$54=1,ROW(INDIRECT(\"1:\"&ROWS($S$51:$S$54)))),ROWS($1:4))),\"\")","v":""}]
[null,"Tirage au sort H2"]
[null,{"$f":"IF(COUNTIF($S$51:$S$54,1)>1,IF(ROWS($1:1)<=COUNTIF($S$51:$S$54,1),INDEX($T$51:$T$54,SMALL(IF($S$51:$S$54=1,ROW(INDIRECT(\"1:\"&ROWS($S$51:$S$54)))),ROWS($1:1))),\"\"),IF(COUNTIF($S$51:$S$54,2)>1,IF(ROWS($1:1)<=COUNTIF($S$51:$S$54,2),INDEX($T$51:$T$54,SMALL(IF($S$51:$S$54=2,ROW(INDIRECT(\"1:\"&ROWS($S$51:$S$54)))),ROWS($1:1))),\"\")))","v":"Sénégal"}]
[null,{"$f":"IF(COUNTIF($S$51:$S$54,1)>1,IF(ROWS($1:2)<=COUNTIF($S$51:$S$54,1),INDEX($T$51:$T$54,SMALL(IF($S$51:$S$54=1,ROW(INDIRECT(\"1:\"&ROWS($S$51:$S$54)))),ROWS($1:2))),\"\"),IF(COUNTIF($S$51:$S$54,2)>1,IF(ROWS($1:2)<=COUNTIF($S$51:$S$54,2),INDEX($T$51:$T$54,SMALL(IF($S$51:$S$54=2,ROW(INDIRECT(\"1:\"&ROWS($S$51:$S$54)))),ROWS($1:2))),\"\")))","v":"Japon"}]
[null,{"$f":"IF(COUNTIF($S$51:$S$54,1)>1,IF(ROWS($1:3)<=COUNTIF($S$51:$S$54,1),INDEX($T$51:$T$54,SMALL(IF($S$51:$S$54=1,ROW(INDIRECT(\"1:\"&ROWS($S$51:$S$54)))),ROWS($1:3))),\"\"),IF(COUNTIF($S$51:$S$54,2)>1,IF(ROWS($1:3)<=COUNTIF($S$51:$S$54,2),INDEX($T$51:$T$54,SMALL(IF($S$51:$S$54=2,ROW(INDIRECT(\"1:\"&ROWS($S$51:$S$54)))),ROWS($1:3))),\"\")))","v":""}]
[null,{"$f":"IF(COUNTIF($S$51:$S$54,1)>1,IF(ROWS($1:4)<=COUNTIF($S$51:$S$54,1),INDEX($T$51:$T$54,SMALL(IF($S$51:$S$54=1,ROW(INDIRECT(\"1:\"&ROWS($S$51:$S$54)))),ROWS($1:4))),\"\"),IF(COUNTIF($S$51:$S$54,2)>1,IF(ROWS($1:4)<=COUNTIF($S$51:$S$54,2),INDEX($T$51:$T$54,SMALL(IF($S$51:$S$54=2,ROW(INDIRECT(\"1:\"&ROWS($S$51:$S$54)))),ROWS($1:4))),\"\")))","v":""}]

{"sheet":"DATA_1_TEAMS","index":1,"n_rows":33,"n_cols":4,"rows_kept":33,"cut":false,"hidden":true,"merged":[]}
["CODE","TEAM","GROUP","GROUP_INITIAL_RANK"]
[{"$f":"+TABLEAU_TEAMS[[#This Row],[GROUP]]&\"_\"&TABLEAU_TEAMS[[#This Row],[GROUP_INITIAL_RANK]]","v":"A_1"},"Russie","A",1]
[{"$f":"+TABLEAU_TEAMS[[#This Row],[GROUP]]&\"_\"&TABLEAU_TEAMS[[#This Row],[GROUP_INITIAL_RANK]]","v":"A_2"},"Arabie Saoudite","A",2]
[{"$f":"+TABLEAU_TEAMS[[#This Row],[GROUP]]&\"_\"&TABLEAU_TEAMS[[#This Row],[GROUP_INITIAL_RANK]]","v":"A_3"},"Egypte","A",3]
[{"$f":"+TABLEAU_TEAMS[[#This Row],[GROUP]]&\"_\"&TABLEAU_TEAMS[[#This Row],[GROUP_INITIAL_RANK]]","v":"A_4"},"Uruguay","A",4]
[{"$f":"+TABLEAU_TEAMS[[#This Row],[GROUP]]&\"_\"&TABLEAU_TEAMS[[#This Row],[GROUP_INITIAL_RANK]]","v":"B_1"},"Maroc","B",1]
[{"$f":"+TABLEAU_TEAMS[[#This Row],[GROUP]]&\"_\"&TABLEAU_TEAMS[[#This Row],[GROUP_INITIAL_RANK]]","v":"B_2"},"RI Iran","B",2]
[{"$f":"+TABLEAU_TEAMS[[#This Row],[GROUP]]&\"_\"&TABLEAU_TEAMS[[#This Row],[GROUP_INITIAL_RANK]]","v":"B_3"},"Portugal","B",3]
[{"$f":"+TABLEAU_TEAMS[[#This Row],[GROUP]]&\"_\"&TABLEAU_TEAMS[[#This Row],[GROUP_INITIAL_RANK]]","v":"B_4"},"Espagne","B",4]
[{"$f":"+TABLEAU_TEAMS[[#This Row],[GROUP]]&\"_\"&TABLEAU_TEAMS[[#This Row],[GROUP_INITIAL_RANK]]","v":"C_1"},"France","C",1]
[{"$f":"+TABLEAU_TEAMS[[#This Row],[GROUP]]&\"_\"&TABLEAU_TEAMS[[#This Row],[GROUP_INITIAL_RANK]]","v":"C_2"},"Australie","C",2]
[{"$f":"+TABLEAU_TEAMS[[#This Row],[GROUP]]&\"_\"&TABLEAU_TEAMS[[#This Row],[GROUP_INITIAL_RANK]]","v":"C_3"},"Pérou","C",3]
[{"$f":"+TABLEAU_TEAMS[[#This Row],[GROUP]]&\"_\"&TABLEAU_TEAMS[[#This Row],[GROUP_INITIAL_RANK]]","v":"C_4"},"Danemark","C",4]
[{"$f":"+TABLEAU_TEAMS[[#This Row],[GROUP]]&\"_\"&TABLEAU_TEAMS[[#This Row],[GROUP_INITIAL_RANK]]","v":"D_1"},"Argentine","D",1]
[{"$f":"+TABLEAU_TEAMS[[#This Row],[GROUP]]&\"_\"&TABLEAU_TEAMS[[#This Row],[GROUP_INITIAL_RANK]]","v":"D_2"},"Islande","D",2]
[{"$f":"+TABLEAU_TEAMS[[#This Row],[GROUP]]&\"_\"&TABLEAU_TEAMS[[#This Row],[GROUP_INITIAL_RANK]]","v":"D_3"},"Croatie","D",3]
[{"$f":"+TABLEAU_TEAMS[[#This Row],[GROUP]]&\"_\"&TABLEAU_TEAMS[[#This Row],[GROUP_INITIAL_RANK]]","v":"D_4"},"Nigeria","D",4]
[{"$f":"+TABLEAU_TEAMS[[#This Row],[GROUP]]&\"_\"&TABLEAU_TEAMS[[#This Row],[GROUP_INITIAL_RANK]]","v":"E_1"},"Costa Rica","E",1]
[{"$f":"+TABLEAU_TEAMS[[#This Row],[GROUP]]&\"_\"&TABLEAU_TEAMS[[#This Row],[GROUP_INITIAL_RANK]]","v":"E_2"},"Serbie","E",2]
[{"$f":"+TABLEAU_TEAMS[[#This Row],[GROUP]]&\"_\"&TABLEAU_TEAMS[[#This Row],[GROUP_INITIAL_RANK]]","v":"E_3"},"Brésil","E",3]
[{"$f":"+TABLEAU_TEAMS[[#This Row],[GROUP]]&\"_\"&TABLEAU_TEAMS[[#This Row],[GROUP_INITIAL_RANK]]","v":"E_4"},"Suisse","E",4]
[{"$f":"+TABLEAU_TEAMS[[#This Row],[GROUP]]&\"_\"&TABLEAU_TEAMS[[#This Row],[GROUP_INITIAL_RANK]]","v":"F_1"},"Allemagne","F",1]
[{"$f":"+TABLEAU_TEAMS[[#This Row],[GROUP]]&\"_\"&TABLEAU_TEAMS[[#This Row],[GROUP_INITIAL_RANK]]","v":"F_2"},"Mexique","F",2]
[{"$f":"+TABLEAU_TEAMS[[#This Row],[GROUP]]&\"_\"&TABLEAU_TEAMS[[#This Row],[GROUP_INITIAL_RANK]]","v":"F_3"},"Suède","F",3]
[{"$f":"+TABLEAU_TEAMS[[#This Row],[GROUP]]&\"_\"&TABLEAU_TEAMS[[#This Row],[GROUP_INITIAL_RANK]]","v":"F_4"},"République de Corée","F",4]
[{"$f":"+TABLEAU_TEAMS[[#This Row],[GROUP]]&\"_\"&TABLEAU_TEAMS[[#This Row],[GROUP_INITIAL_RANK]]","v":"G_1"},"Belgique","G",1]
[{"$f":"+TABLEAU_TEAMS[[#This Row],[GROUP]]&\"_\"&TABLEAU_TEAMS[[#This Row],[GROUP_INITIAL_RANK]]","v":"G_2"},"Panama","G",2]
[{"$f":"+TABLEAU_TEAMS[[#This Row],[GROUP]]&\"_\"&TABLEAU_TEAMS[[#This Row],[GROUP_INITIAL_RANK]]","v":"G_3"},"Tunisie","G",3]
[{"$f":"+TABLEAU_TEAMS[[#This Row],[GROUP]]&\"_\"&TABLEAU_TEAMS[[#This Row],[GROUP_INITIAL_RANK]]","v":"G_4"},"Angleterre","G",4]
[{"$f":"+TABLEAU_TEAMS[[#This Row],[GROUP]]&\"_\"&TABLEAU_TEAMS[[#This Row],[GROUP_INITIAL_RANK]]","v":"H_1"},"Colombie","H",1]
[{"$f":"+TABLEAU_TEAMS[[#This Row],[GROUP]]&\"_\"&TABLEAU_TEAMS[[#This Row],[GROUP_INITIAL_RANK]]","v":"H_2"},"Japon","H",2]
[{"$f":"+TABLEAU_TEAMS[[#This Row],[GROUP]]&\"_\"&TABLEAU_TEAMS[[#This Row],[GROUP_INITIAL_RANK]]","v":"H_3"},"Pologne","H",3]
[{"$f":"+TABLEAU_TEAMS[[#This Row],[GROUP]]&\"_\"&TABLEAU_TEAMS[[#This Row],[GROUP_INITIAL_RANK]]","v":"H_4"},"Sénégal","H",4]

{"sheet":"DATA_1_MATCHS","index":2,"n_rows":49,"n_cols":5,"rows_kept":49,"cut":false,"hidden":true,"merged":[]}
["MATCH_NUMBER","MATCH_DATE","MATCH_TIME","TEAM_1","TEAM_2"]
[1,"2018-06-14","18:00:00","Russie","Arabie Saoudite"]
[2,"2018-06-15","17:00:00","Egypte","Uruguay"]
[3,"2018-06-15","18:00:00","Maroc","RI Iran"]
[4,"2018-06-15","21:00:00","Portugal","Espagne"]
[5,"2018-06-16","13:00:00","France","Australie"]
[6,"2018-06-16","19:00:00","Pérou","Danemark"]
[7,"2018-06-16","16:00:00","Argentine","Islande"]
[8,"2018-06-16","21:00:00","Croatie","Nigeria"]
[9,"2018-06-17","16:00:00","Costa Rica","Serbie"]
[10,"2018-06-17","21:00:00","Brésil","Suisse"]
[11,"2018-06-17","18:00:00","Allemagne","Mexique"]
[12,"2018-06-18","15:00:00","Suède","République de Corée"]
[13,"2018-06-18","18:00:00","Belgique","Panama"]
[14,"2018-06-18","21:00:00","Tunisie","Angleterre"]
[15,"2018-06-19","15:00:00","Colombie","Japon"]
[16,"2018-06-19","18:00:00","Pologne","Sénégal"]
[17,"2018-06-19","21:00:00","Russie","Egypte"]
[18,"2018-06-20","18:00:00","Uruguay","Arabie Saoudite"]
[19,"2018-06-20","15:00:00","Portugal","Maroc"]
[20,"2018-06-20","21:00:00","RI Iran","Espagne"]
[21,"2018-06-21","16:00:00","Danemark","Australie"]
[22,"2018-06-21","20:00:00","France","Pérou"]
[23,"2018-06-21","21:00:00","Argentine","Croatie"]
[24,"2018-06-22","18:00:00","Nigeria","Islande"]
[25,"2018-06-22","15:00:00","Brésil","Costa Rica"]
[26,"2018-06-22","20:00:00","Serbie","Suisse"]
[27,"2018-06-23","18:00:00","République de Corée","Mexique"]
[28,"2018-06-23","21:00:00","Allemagne","Suède"]
[29,"2018-06-23","15:00:00","Belgique","Tunisie"]
[30,"2018-06-24","15:00:00","Angleterre","Panama"]
[31,"2018-06-24","20:00:00","Japon","Sénégal"]
[32,"2018-06-24","21:00:00","Pologne","Colombie"]
[33,"2018-06-25","18:00:00","Uruguay","Russie"]
[34,"2018-06-25","17:00:00","Arabie Saoudite","Egypte"]
[35,"2018-06-25","21:00:00","RI Iran","Portugal"]
[36,"2018-06-25","20:00:00","Espagne","Maroc"]
[37,"2018-06-26","17:00:00","Danemark","France"]
[38,"2018-06-26","17:00:00","Australie","Pérou"]
[39,"2018-06-26","21:00:00","Nigeria","Argentine"]
[40,"2018-06-26","21:00:00","Islande","Croatie"]
[41,"2018-06-27","21:00:00","Serbie","Brésil"]
[42,"2018-06-27","21:00:00","Suisse","Costa Rica"]
[43,"2018-06-27","19:00:00","Mexique","Suède"]
[44,"2018-06-27","17:00:00","République de Corée","Allemagne"]
[45,"2018-06-28","21:00:00","Panama","Tunisie"]
[46,"2018-06-28","20:00:00","Angleterre","Belgique"]
[47,"2018-06-28","17:00:00","Japon","Pologne"]
[48,"2018-06-28","18:00:00","Sénégal","Colombie"]